2CCN - Level 2 Cost Centre Name,,9CCN - Level 9 Cost Centre Name,9CCC - Level 9 Cost Centre Code,9AN - Level 9 Account Name,9AC - Level 9 Account Code,Transaction Description,Date Paid,Transaction Reference,Analysed Amount,2AC - Level 2 Account Codes,Supplier Name,Supplier Code
Gloucester City Council,23UE,Business Support,PT250,Fuel,4012,Fuel,01/07/2014,386725,506.57,NET,Allstar Business Solutions Ltd (Arval),06594A
Gloucester City Council,23UE,Cctv Revenue Budget,FP501,Security Equipment Serv/Repair,3038,Annual Preventative Maintenance 14/15,01/07/2014,386694,100,NET,Eurolink Security & Technology Group,05166M
Gloucester City Council,23UE,Contact Centre,RB300,Basic Pay -Admin /Prof Staff,2601,REDACTED,01/07/2014,386723,649,NET,Cps Anystaff Recruitment Ltd,13945D
Gloucester City Council,23UE,Contact Centre,RB300,Basic Pay -Admin /Prof Staff,2601,REDACTED,01/07/2014,386724,676.5,NET,Cps Anystaff Recruitment Ltd,13945D
Gloucester City Council,23UE,Council Streetcare Team,HI101,Maint Of Grounds - General,3030,Site Monitoring 2014/15 Slimbridge Road,01/07/2014,384775,180,NET,Elcot Environmental,12293P
Gloucester City Council,23UE,Crematorium,HC200,Cleaning Materials,3600,Cabinets,01/07/2014,386672,73.95,NET,Initial Washroom Solutions,24219P
Gloucester City Council,23UE,Emergency Out Of Hours Calls,RB301,Fees For Services Received,5350,Monthly Fee July 2014,01/07/2014,386699,226.69,NET,Office Response,09439K
Gloucester City Council,23UE,REDACTED,REDACTED,REDACTED,REDACTED,REDACTED,01/07/2014,REDACTED,80,NET,REDACTED,REDACTED
Gloucester City Council,23UE,REDACTED,REDACTED,REDACTED,REDACTED,REDACTED,01/07/2014,REDACTED,100,NET,REDACTED,REDACTED
Gloucester City Council,23UE,REDACTED,REDACTED,REDACTED,REDACTED,REDACTED,01/07/2014,REDACTED,182.73,NET,REDACTED,REDACTED
Gloucester City Council,23UE,REDACTED,REDACTED,REDACTED,REDACTED,REDACTED,01/07/2014,REDACTED,14.25,NET,REDACTED,REDACTED
Gloucester City Council,23UE,REDACTED,REDACTED,REDACTED,REDACTED,REDACTED,01/07/2014,REDACTED,104.84,NET,REDACTED,REDACTED
Gloucester City Council,23UE,REDACTED,REDACTED,REDACTED,REDACTED,REDACTED,01/07/2014,REDACTED,115.57,NET,REDACTED,REDACTED
Gloucester City Council,23UE,REDACTED,REDACTED,REDACTED,REDACTED,REDACTED,01/07/2014,REDACTED,343.51,NET,REDACTED,REDACTED
Gloucester City Council,23UE,Homelessness,CH120,Board And Lodging,5515,REDACTED,01/07/2014,386236,52.5,NET,Gloucestershire County Council,18650D
Gloucester City Council,23UE,Homelessness,CH120,Rent In Advance,5516,REDACTED,01/07/2014,386772,576.92,NET,REDACTED,REDACTED
Gloucester City Council,23UE,Homelessness Prevention,CH122,Fees For Services Received,5350,REDACTED,01/07/2014,386772,550,NET,REDACTED,REDACTED
Gloucester City Council,23UE,Stationery Services,RS150,Stationery,5302,Xerox 90GM,01/07/2014,386674,13.8,NET,Stanford Marsh Ltd*,51139M
Gloucester City Council,23UE,Tourism Marketing,LT100,Subscriptions,5600,Employees Annual Fee 14/15,01/07/2014,386675,153,NET,Green Tourism Business Scheme,06576C
Gloucester City Council,23UE,Wake Room,HC501,Catering Provisions -Food,5110,Food,01/07/2014,386761,284.23,NET,3663,55585U
Gloucester City Council,23UE,Building Control,PT400,Basic Pay - Temporary Staff,2751,REDACTED,02/07/2014,384492,2431,NET,Brg Interim Solutions,14065L
Gloucester City Council,23UE,Cemeteries,HC300,Maint Of Grounds - General,3030,Wheelbarrow,02/07/2014,386851,118.42,NET,Spaldings,48759Y
Gloucester City Council,23UE,Cemeteries,HC300,Routine R And M - Vehicles,4011,Petrol Caps,02/07/2014,386673,34.76,NET,Garden Machinery Gloucester,55641K
Gloucester City Council,23UE,Cemeteries,HC300,Routine R And M - Vehicles,4011,Repair to 'B' Cylinder,02/07/2014,386240,46,NET,Teleshore (Uk) Ltd,56819G
Gloucester City Council,23UE,Cemeteries,HC300,Routine R And M - Vehicles,4011,V- Belt,02/07/2014,386859,80.32,NET,Frank Sutton Ltd - Agric'L Engineer,42875D
Gloucester City Council,23UE,Community Safety Projects,FP500,Basic Pay -Admin /Prof Staff,2601,REDACTED,02/07/2014,386872,534.65,NET,Travail Employment Ltd,49371W
Gloucester City Council,23UE,Contact Centre,RB300,Basic Pay -Admin /Prof Staff,2601,REDACTED,02/07/2014,386705,858,NET,Venn Group Ltd,04339P
Gloucester City Council,23UE,Crematorium,HC200,Repair/Maint Of Fixed Plant,3006,6 monthly service visit,02/07/2014,386850,5598.94,NET,Facultatieve Technologies Ltd,51210H
Gloucester City Council,23UE,Eastgate Viewing Chamber,LY100,Contract Payments,0020,Eastgate Chamber 23/06/2014,02/07/2014,386869,200,CAP,Roadmark Ltd,37743T
Gloucester City Council,23UE,Environmental Planning,LM340,Operational Materials,5070,Circus skills workshops,02/07/2014,386858,325,NET,REDACTED,REDACTED
Gloucester City Council,23UE,Environmental Planning,LM340,Operational Materials,5070,Full Day Natural History,02/07/2014,386844,200,NET,Life In The Rainforest,14033A
Gloucester City Council,23UE,Flooding And Drainage,HE306,Maint Of Grounds - General,3030,River Twyver clearance,02/07/2014,386225,865,NET,Rdb Safety Boat Ltd,13507J
Gloucester City Council,23UE,Flooding And Drainage,HE306,Maint Of Grounds - General,3030,Slimbridge Road. Drainage Channel,02/07/2014,386226,90,NET,Rdb Safety Boat Ltd,13507J
Gloucester City Council,23UE,Flooding And Drainage,HE306,Maint Of Grounds - General,3030,"Vegetation Clearance, Milton Avenue",02/07/2014,385939,180,NET,Rdb Safety Boat Ltd,13507J
Gloucester City Council,23UE,General Drainage Works,PY241,Contract Payments,0020,"Bourton Road, Drainage Works",02/07/2014,386867,3576.26,CAP,Mr M G Horton T/A H&T Property Maintenance,09210X
Gloucester City Council,23UE,Gloucester Guildhall,LA100,Maintenance Of Equipment,5030,Stage Monitors Rental 15/4/2014,02/07/2014,386865,1200,NET,Unique Sound Systems,59571S
Gloucester City Council,23UE,REDACTED,REDACTED,REDACTED,REDACTED,REDACTED,02/07/2014,REDACTED,250,NET,REDACTED,REDACTED
Gloucester City Council,23UE,REDACTED,REDACTED,REDACTED,REDACTED,REDACTED,02/07/2014,REDACTED,130,NET,REDACTED,REDACTED
Gloucester City Council,23UE,Guildhall Lettings,LA400,Hire Of Equipment,5020,Radio Microphones 10/04/2014,02/07/2014,386866,132,NET,Unique Sound Systems,59571S
Gloucester City Council,23UE,Investment Property,RB500,Court Fees,5358,REDACTED,02/07/2014,386890,60,NET,Hmcts,10680X
Gloucester City Council,23UE,Kings Quarter,RY146,Legal/Survey Fees -Land,0002,Kings Quarter Archeology Project,02/07/2014,386870,33492.91,CAP,Ken Pink Plant Hire Ltd,56884V
Gloucester City Council,23UE,Legal Services,RS200,Basic Pay -Admin /Prof Staff,2601,REDACTED,02/07/2014,386862,1916.25,NET,Michael Page International Recruitment Ltd,06601P
Gloucester City Council,23UE,Off Street Car Parks,PP110,Pcn Charges,9450,G052052124,02/07/2014,386891,25,NET,REDACTED,REDACTED
Gloucester City Council,23UE,Retail Market - Landlord,HM300,Events Income,9202,Canopy & Sidewall,02/07/2014,386853,261,NET,City B Group,03452C
Gloucester City Council,23UE,Safer Stronger Communities,FP841,Other Minor Supplies Services,5590,two first aiders,02/07/2014,386826,110,NET,British Red Cross,13000B
Gloucester City Council,23UE,Stationery Services,RS150,Stationery,5302,Paper,02/07/2014,386855,451,NET,Premier Paper Group Ltd,09166Y
Gloucester City Council,23UE,Stationery Services,RS150,Stationery,5302,Paper,02/07/2014,386856,169.13,NET,Premier Paper Group Ltd,09166Y
Gloucester City Council,23UE,Tic Rovercard Sales,LT101,Materials For Sale,5080,Bus Tickets,02/07/2014,386841,3256,NET,Stagecoach Services Ltd*,56554W
Gloucester City Council,23UE,Tic Rovercard Sales,LT101,Sale Of Goods And Services,9230,Bus Tickets,02/07/2014,386841,-271.34,NET,Stagecoach Services Ltd*,56554W
Gloucester City Council,23UE,Building Control,PT400,Basic Pay - Temporary Staff,2751,REDACTED,03/07/2014,386537,5000,NET,Brg Interim Solutions,14065L
Gloucester City Council,23UE,Building Control,PT400,Basic Pay - Temporary Staff,2751,REDACTED,03/07/2014,385901,2500,NET,Brg Interim Solutions,14065L
Gloucester City Council,23UE,Building Control,PT400,Basic Pay - Temporary Staff,2751,REDACTED,03/07/2014,384959,2500,NET,Brg Interim Solutions,14065L
Gloucester City Council,23UE,Building Control,PT400,Car Allows -Cas. User Mileage,4102,REDACTED,03/07/2014,385326,36.6,NET,Brg Interim Solutions,14065L
Gloucester City Council,23UE,Cemeteries,HC300,Fuel,4012,Fuel,03/07/2014,386695,1214.38,NET,Cpl Petroleum,55192U
Gloucester City Council,23UE,Electrical Investigatory Works,RY142,Contract Payments,0020,Fire Extinguisher Inspection,03/07/2014,386165,24,CAP,A & E Fire Equipment Limited,54289L
Gloucester City Council,23UE,Electrical Investigatory Works,RY142,Contract Payments,0020,Fire Extinguishers Inspection,03/07/2014,386401,155.16,CAP,A & E Fire Equipment Limited,54289L
Gloucester City Council,23UE,Flood Defence Grants To Househ,CY011,Other Capital Grants,0089,Safe at Home Contribution May 14,03/07/2014,386361,4934,CAP,Gloucestershire County Council,18650D
Gloucester City Council,23UE,Flooding And Drainage,HE306,Maint Of Grounds - General,3030,Clearance of Black Bridge,03/07/2014,386684,240,NET,Tcv T/A The Conservation Volunteers,55897V
Gloucester City Council,23UE,Gloucester Guildhall,LA100,Maintenance Of Equipment,5030,Battery Top up water,03/07/2014,386386,10.46,NET,Halfords Ltd*,56192J
Gloucester City Council,23UE,Homelessness,CH120,Basic Pay - Temporary Staff,2751,REDACTED,03/07/2014,386700,691.74,NET,Venn Group Ltd,04339P
Gloucester City Council,23UE,Homelessness,CH120,Basic Pay - Temporary Staff,2751,REDACTED,03/07/2014,386703,878.4,NET,Venn Group Ltd,04339P
Gloucester City Council,23UE,Homelessness,CH120,Basic Pay - Temporary Staff,2751,REDACTED,03/07/2014,386701,845.46,NET,Venn Group Ltd,04339P
Gloucester City Council,23UE,Homelessness,CH120,Basic Pay - Temporary Staff,2751,Venn Group Invoice- 958837,03/07/2014,386704,812.52,NET,Venn Group Ltd,04339P
Gloucester City Council,23UE,Homelessness,CH120,Rent In Advance,5516,REDACTED,03/07/2014,386924,461.64,NET,REDACTED,REDACTED
Gloucester City Council,23UE,Homelessness,CH120,Rent In Advance,5516,REDACTED,03/07/2014,386923,582.68,NET,REDACTED,REDACTED
Gloucester City Council,23UE,Homelessness Prevention,CH122,Fees For Services Received,5350,REDACTED,03/07/2014,386923,600,NET,REDACTED,REDACTED
Gloucester City Council,23UE,Investment Property,RB500,General Repair/Maint Buildings,3000,"Eastgate Market, Clear blocked drain",03/07/2014,386836,160,NET,Three Counties Drain Service,44033V
Gloucester City Council,23UE,Legal Services,RS200,Basic Pay - Temporary Staff,2751,REDACTED,03/07/2014,386229,1136.7,NET,Venn Group Ltd,04339P
Gloucester City Council,23UE,Legal Services,RS200,Basic Pay - Temporary Staff,2751,REDACTED,03/07/2014,386864,395.1,NET,Premiere Employment Ltd,55468Z
Gloucester City Council,23UE,Mandatory Rent Allowances,DD100,Rent Allowances - Normal Payts,7200,REDACTED,03/07/2014,386924,500,NET,REDACTED,REDACTED
Gloucester City Council,23UE,Planning Policy,PT300,Basic Pay - Temporary Staff,2751,REDACTED,03/07/2014,386688,1400,NET,The Oyster Partnership Limited,14900T
Gloucester City Council,23UE,Planning Policy,PT300,Basic Pay - Temporary Staff,2751,REDACTED,03/07/2014,386679,1053.2,NET,The Oyster Partnership Limited,14900T
Gloucester City Council,23UE,Planning Policy,PT300,Basic Pay - Temporary Staff,2751,REDACTED,03/07/2014,386689,1759,NET,The Oyster Partnership Limited,14900T
Gloucester City Council,23UE,Planning Policy,PT300,Basic Pay - Temporary Staff,2751,REDACTED,03/07/2014,386691,1415.5,NET,The Oyster Partnership Limited,14900T
Gloucester City Council,23UE,Planning Policy,PT300,Basic Pay - Temporary Staff,2751,REDACTED,03/07/2014,386680,1750,NET,The Oyster Partnership Limited,14900T
Gloucester City Council,23UE,Planning Policy,PT300,Basic Pay - Temporary Staff,2751,REDACTED,03/07/2014,386687,1755,NET,The Oyster Partnership Limited,14900T
Gloucester City Council,23UE,Rehousing,CH111,Basic Pay - Temporary Staff,2751,REDACTED,03/07/2014,386405,709.5,NET,Building Recruitment Company Ltd,55385E
Gloucester City Council,23UE,Rehousing,CH111,Basic Pay - Temporary Staff,2751,REDACTED,03/07/2014,386875,482,NET,Building Recruitment Company Ltd,55385E
Gloucester City Council,23UE,Wake Room,HC501,Catering Provisions -Food,5110,Food w/e 22/06/2014,03/07/2014,386398,148.55,NET,Janes Pantry,24500W
Gloucester City Council,23UE,Aspire Admin Charges,LC105,Other Minor Income,9900,BAILIFF PAYMENTS 20/06/14,04/07/2014,387046,82.8,NET,Aspire Sports & Cultural Trust,08135V
Gloucester City Council,23UE,Business Support,PT250,Publications,5060,Citizen Paper,04/07/2014,386878,40,NET,Ymk Supermarket,55281U
Gloucester City Council,23UE,Business Support,PT250,Publications,5060,Citizen papers,04/07/2014,386879,175,NET,Ymk Supermarket,55281U
Gloucester City Council,23UE,Business Transformation & Tech,RT700,Computer Consumables,5422,Wideband,04/07/2014,386676,1479.75,NET,Rocom,56066R
Gloucester City Council,23UE,Business Transformation & Tech,RT700,Computer Hardware <5000,5420,HP officejet pro,04/07/2014,386414,119,NET,Qual Technology,56512N
Gloucester City Council,23UE,Community Safety Projects,FP500,Basic Pay -Admin /Prof Staff,2601,REDACTED,04/07/2014,386876,580.32,NET,Travail Employment Ltd,49371W
Gloucester City Council,23UE,Contact Centre,RB300,Uniforms,5201,Clothing,04/07/2014,386245,706.55,NET,Meltemi Company Clothing Limited,54572N
Gloucester City Council,23UE,Crematorium,HC200,Computer Software <5000,5425,REDACTED,04/07/2014,384767,180,NET,Capita Business Services Limited*,54095C
Gloucester City Council,23UE,Crematorium,HC200,Fees For Services Received,5350,Crem Doctors Fees June 2014,04/07/2014,387041,1051.52,NET,REDACTED,REDACTED
Gloucester City Council,23UE,Crematorium,HC200,Fees For Services Received,5350,Crem Doctors Fees June 2014,04/07/2014,387042,1123.52,NET,REDACTED,REDACTED
Gloucester City Council,23UE,Crematorium,HC200,Fees For Services Received,5350,Crem Doctors Fees June 2014,04/07/2014,387043,568.88,NET,REDACTED,REDACTED
Gloucester City Council,23UE,Financial Services,RT200,Consultants Fees,5349,REDACTED,04/07/2014,386231,2175,NET,Robert Half Ltd,03959K
Gloucester City Council,23UE,Financial Services,RT200,Consultants Fees,5349,REDACTED,04/07/2014,386677,2175,NET,Robert Half Ltd,03959K
Gloucester City Council,23UE,Guildhall Bar And Caf�,LA210,Catering Provisions -Food,5110,Food,04/07/2014,387040,100.42,NET,Woodward Foodservice,10714F
Gloucester City Council,23UE,REDACTED,REDACTED,REDACTED,REDACTED,REDACTED,04/07/2014,REDACTED,100,NET,REDACTED,REDACTED
Gloucester City Council,23UE,REDACTED,REDACTED,REDACTED,REDACTED,REDACTED,04/07/2014,REDACTED,100,NET,REDACTED,REDACTED
Gloucester City Council,23UE,REDACTED,REDACTED,REDACTED,REDACTED,REDACTED,04/07/2014,REDACTED,100,NET,REDACTED,REDACTED
Gloucester City Council,23UE,Investment Property,RB500,Land Registry Fees,5382,Registration Project,04/07/2014,387013,525,NET,Land Registry,73834D
Gloucester City Council,23UE,Off Street Car Parks,PP110,Computer Software Maintenance,5427,DVLA Enquiry Service May 14,04/07/2014,386086,74.7,NET,Chipside Ltd,06535T
Gloucester City Council,23UE,Off Street Car Parks,PP110,Rents,3200,CAR PARK 53 EASTGATE ST,04/07/2014,386928,220,NET,Eddisons Commercial (Property Management) Ltd,08767Y
Gloucester City Council,23UE,Off Street Car Parks,PP110,Rents,3200,Rent June- Dec 2014,04/07/2014,384526,220,NET,Primark Stores Ltd,58027G
Gloucester City Council,23UE,Retail Market - Landlord,HM300,Trade Refuse Collection,3630,Waste,04/07/2014,386854,120,NET,B & S Pointon Ltd,06253G
Gloucester City Council,23UE,Summer Festival,LT300,Operational Equipment <5000,5012,Grip Gloves,04/07/2014,386824,21.3,NET,Fire Protection Shop,09859G
Gloucester City Council,23UE,Aspire Admin Charges,LC105,Contracted Services,6970,Management fees July 2014,07/07/2014,386918,71458.92,NET,Aspire Sports & Cultural Trust,08135V
Gloucester City Council,23UE,Blackfriars,LA609,Uniforms,5201,Name Badges,07/07/2014,386377,89.6,NET,Akorn Badges,51779S
Gloucester City Council,23UE,Blackfriars Catering,LA220,Catering Provisions -Liquor,5111,Drinks,07/07/2014,387018,365.52,NET,Cellar Supplies Cheltenham Ltd,01563L
Gloucester City Council,23UE,Civica Contract Revs & Bens,RT250,Contracted Services,6970,Revenues& Benefits Service August 14,07/07/2014,387017,138572.7,NET,Civica Uk Ltd,10841X
Gloucester City Council,23UE,Civic Admin And Hospitality,RC210,Muniments And Regalia,5033,repair to Mayors chain,07/07/2014,373715,20,NET,The Goldman Ltd,04699D
Gloucester City Council,23UE,Client Revs & Bens Contract,RT240,Bailiffs Fees,5368,VAT on fees collected,07/07/2014,386825,0,NET,Phoenix Commercial Collections Ltd,13435J
Gloucester City Council,23UE,Client Revs & Bens Contract,RT240,Bailiffs Fees,5368,VAT on Statutory Fees,07/07/2014,386817,0,NET,Bristow & Sutor,05450M
Gloucester City Council,23UE,Corporate Reporting /Financing,RC504,Members Training,5535,Member Training June 2014,07/07/2014,386818,1500,NET,Sector Treasury Services Ltd,05281L
Gloucester City Council,23UE,Countryside Unit,LP201,Routine R And M - Vehicles,4011,Lower Link,07/07/2014,387039,35.42,NET,T H White Ltd,58324X
Gloucester City Council,23UE,Countryside Unit,LP201,Routine R And M - Vehicles,4011,Scag Pto Belt,07/07/2014,386958,55.23,NET,Commercial Mower Supplies,06799D
Gloucester City Council,23UE,Crematorium,HC200,Memorial Plaques,5053,Plaque,07/07/2014,386968,96,NET,Arkell & Hurcombe,59812T
Gloucester City Council,23UE,Crematorium,HC200,Memorial Plaques,5053,Plaques,07/07/2014,386966,408,NET,Arkell & Hurcombe,59812T
Gloucester City Council,23UE,Crematorium,HC200,Memorial Plaques,5053,Plaques,07/07/2014,386967,192,NET,Arkell & Hurcombe,59812T
Gloucester City Council,23UE,Crematorium,HC200,Oper Leases - Equipment,5029,Church Candle,07/07/2014,386982,54.4,NET,The Candlelight Company,10270X
Gloucester City Council,23UE,Development Management,PT200,Microfilming / Cd-Rom Storage,5330,Archival Storage June 2014,07/07/2014,386969,22,NET,Transmedia Technology Ltd,08635T
Gloucester City Council,23UE,Disabled Facilities Grants,CY013,Disabled Facility Grants,0074,REDACTED,07/07/2014,387037,3655,CAP,L Coward & Son Ltd,47989M
Gloucester City Council,23UE,Disabled Facilities Grants,CY013,Disabled Facility Grants,0074,REDACTED,07/07/2014,387038,3621.75,CAP,Nks Contracts (Central) Ltd,56355E
Gloucester City Council,23UE,Financial Services,RT200,Computer Software Maintenance,5427,Consultancy June 2014,07/07/2014,386977,850,NET,Advanced Business Solutions,06072N
Gloucester City Council,23UE,Financial Services,RT200,Computer Software Maintenance,5427,Consultancy June 2014,07/07/2014,386979,850,NET,Advanced Business Solutions,06072N
Gloucester City Council,23UE,General Drainage Works,PY241,Contract Payments,0020,Sudbrook PLP Scheme,07/07/2014,387012,750,CAP,Rab Consultants,13415R
Gloucester City Council,23UE,Gloucester Guildhall,LA100,Uniforms,5201,Name Badges,07/07/2014,386377,106.8,NET,Akorn Badges,51779S
Gloucester City Council,23UE,Group Mgr Cult Ser & Tourism,GR102,Consultants Fees,5349,Consultancy Services June 2014,07/07/2014,386989,7031.25,NET,Michael & Partners Limited,15101Z
Gloucester City Council,23UE,Guildhall Bar And Caf�,LA210,Catering Provisions -Liquor,5111,Drinks,07/07/2014,387019,804.75,NET,Cellar Supplies Cheltenham Ltd,01563L
Gloucester City Council,23UE,REDACTED,REDACTED,REDACTED,REDACTED,REDACTED,07/07/2014,REDACTED,1292,NET,REDACTED,REDACTED
Gloucester City Council,23UE,REDACTED,REDACTED,REDACTED,REDACTED,REDACTED,07/07/2014,REDACTED,100,NET,REDACTED,REDACTED
Gloucester City Council,23UE,REDACTED,REDACTED,REDACTED,REDACTED,REDACTED,07/07/2014,REDACTED,390,NET,REDACTED,REDACTED
Gloucester City Council,23UE,REDACTED,REDACTED,REDACTED,REDACTED,REDACTED,07/07/2014,REDACTED,170,NET,REDACTED,REDACTED
Gloucester City Council,23UE,Herbert Reception Upgrade,RY201,Contract Payments,0020,Lost Keys/Security Cards,07/07/2014,387020,125,CAP,Regus,13861L
Gloucester City Council,23UE,Homelessness,CH120,Rent In Advance,5516,REDACTED,07/07/2014,387083,582.68,NET,REDACTED,REDACTED
Gloucester City Council,23UE,Homelessness Prevention,CH122,Fees For Services Received,5350,REDACTED,07/07/2014,387083,600,NET,REDACTED,REDACTED
Gloucester City Council,23UE,Kings Quarter,RY146,Legal/Survey Fees -Land,0002,The Golden Egg,07/07/2014,387008,11967.15,CAP,Wye Valley Demolition Ltd,07242C
Gloucester City Council,23UE,Kings Quarter Redevelopment,RB600,Consultants Fees,5349,Kings Quarter Meeting,07/07/2014,386955,974,NET,Resources Consultancy Limited,10508L
Gloucester City Council,23UE,Legal Services,RS200,Basic Pay - Temporary Staff,2751,REDACTED,07/07/2014,386976,470,NET,Badenoch & Clark,01536P
Gloucester City Council,23UE,Marchants,LT108,Materials For Sale,5080,Ticket Sales May 2014,07/07/2014,386840,3442,NET,Marchants Coaches Ltd,48151Y
Gloucester City Council,23UE,Nms Contract,HI102,Contracted Services,6970,Pension May 15,07/07/2014,387007,10511.01,NET,Enterprise (Aol) Ltd,06695G
Gloucester City Council,23UE,Retail Market - Landlord,HM300,Cleaning / Domestic Equipment,5011,Cabinets,07/07/2014,386392,18.05,NET,Initial Washroom Solutions,06143R
Gloucester City Council,23UE,Summer Festival,LT300,Maintenance Of Equipment,5030,Portable PA,07/07/2014,386960,139,NET,Cpc,52980M
Gloucester City Council,23UE,Summer Festival,LT300,Operational Materials,5070,Micro Cube Guitar Amp,07/07/2014,386682,86.16,NET,Dolphin Music,14855W
Gloucester City Council,23UE,Superbreak,LT104,Materials For Sale,5080,Airport Inn Manchester,07/07/2014,386847,89,NET,Superbreak Mini Holidays,00712D
Gloucester City Council,23UE,Superbreak,LT104,Sale Of Goods And Services,9230,Airport Inn Manchester,07/07/2014,386847,-7.41,NET,Superbreak Mini Holidays,00712D
Gloucester City Council,23UE,Tic Rovercard Sales,LT101,Materials For Sale,5080,Bus Tickets,07/07/2014,386842,2400,NET,Stagecoach Services Ltd*,56554W
Gloucester City Council,23UE,Tic Rovercard Sales,LT101,Materials For Sale,5080,Bus Tickets May 2014,07/07/2014,386843,4517.5,NET,Stagecoach Services Ltd*,56554W
Gloucester City Council,23UE,Tic Rovercard Sales,LT101,Sale Of Goods And Services,9230,Bus Tickets,07/07/2014,386842,-200,NET,Stagecoach Services Ltd*,56554W
Gloucester City Council,23UE,Tic Rovercard Sales,LT101,Sale Of Goods And Services,9230,Bus Tickets May 2014,07/07/2014,386843,-376.46,NET,Stagecoach Services Ltd*,56554W
Gloucester City Council,23UE,Treasury Management,VR110,Planning Direct Action,5347,Professional Fees April & May 14,07/07/2014,387010,9366.46,NET,Capita Business Services Limited*,54095C
Gloucester City Council,23UE,Utilities,PT502,Electricity Supply,3110,UTILITIES TO JUNE 2014,07/07/2014,387079,38765.48,NET,West Mercia Energy,11669Z
Gloucester City Council,23UE,Utilities,PT502,Gas Supply,3100,UTILITIES TO JUNE 2014,07/07/2014,387079,6593.58,NET,West Mercia Energy,11669Z
Gloucester City Council,23UE,Wake Room,HC501,Catering Provisions -Food,5110,Food,07/07/2014,387022,16.93,NET,Total Produce Gloucester,12645E
Gloucester City Council,23UE,Wake Room,HC501,Catering Provisions -Food,5110,Food,07/07/2014,387023,17.97,NET,Total Produce Gloucester,12645E
Gloucester City Council,23UE,Wake Room,HC501,Catering Provisions -Food,5110,Food,07/07/2014,387024,9.92,NET,Total Produce Gloucester,12645E
Gloucester City Council,23UE,Wake Room,HC501,Catering Provisions -Food,5110,Food,07/07/2014,387025,15,NET,Total Produce Gloucester,12645E
Gloucester City Council,23UE,Wake Room,HC501,Catering Provisions -Food,5110,Food,07/07/2014,387026,37.49,NET,Total Produce Gloucester,12645E
Gloucester City Council,23UE,Wake Room,HC501,Operational Equipment <5000,5012,KITCHENWARE,07/07/2014,385590,110.26,NET,Nisbets,55372P
Gloucester City Council,23UE,Wake Room,HC501,Operational Equipment <5000,5012,Whirlpool Freezer,07/07/2014,386403,120,NET,John Gillman & Sons (Electrical) Ltd,17625M
Gloucester City Council,23UE,Wake Room,HC501,Other Minor Supplies Services,5590,Flowers,07/07/2014,387021,24,NET,Carols Florist,01274X
Gloucester City Council,23UE,Workshops & Exhibitions,LA204,Hire Of Equipment,5020,Room Hire 25/06/2014,07/07/2014,386986,62.5,NET,The New County Hotel,48928Z
Gloucester City Council,23UE,Workshops & Exhibitions,LA204,Hire Of Equipment,5020,Room Hire 25/06/2014,07/07/2014,386987,62.5,NET,The New County Hotel,48928Z
Gloucester City Council,23UE,Alney Island,PY128,Consultants Fees,0030,"Alney Island, Site Monitoring",08/07/2014,386685,1550,CAP,Gloucestershire Wildlife Trust,49628F
Gloucester City Council,23UE,Arts Educational Promotions,LA610,Basic Pay - Casual Staff,1411,Toys & Games,08/07/2014,387184,75,NET,REDACTED,REDACTED
Gloucester City Council,23UE,Cemeteries,HC300,Basic Pay - Temporary Staff,2751,Grass Cutters June 2014,08/07/2014,387011,3534.18,NET,Anderson Recruitment Ltd,14646H
Gloucester City Council,23UE,Cemeteries,HC300,Clothing,5200,Clothing Items,08/07/2014,387170,117.87,NET,Safpro Industrial Supply Co,39190W
Gloucester City Council,23UE,City Museum And Art Gallery,LM200,Advertising And Publicity,5702,Distribution gloucester museums whats on,08/07/2014,387180,319.4,NET,Glide Media,58829J
Gloucester City Council,23UE,City Museum And Art Gallery,LM200,Misc Fixtures And Fittings,3500,Poster A-Board,08/07/2014,387181,148.95,NET,Greenbarnes Ltd,14845Z
Gloucester City Council,23UE,Civil Parking Enforcement,PT741,Basic Pay - Temporary Staff,2751,REDACTED,08/07/2014,385695,2400,NET,Unity Recruitment,14857S
Gloucester City Council,23UE,Contact Centre,RB300,Basic Pay -Admin /Prof Staff,2601,REDACTED,08/07/2014,387186,110,NET,Cps Anystaff Recruitment Ltd,13945D
Gloucester City Council,23UE,Contact Centre,RB300,Basic Pay -Admin /Prof Staff,2601,REDACTED,08/07/2014,387185,660,NET,Cps Anystaff Recruitment Ltd,13945D
Gloucester City Council,23UE,Contact Centre,RB300,Basic Pay -Admin /Prof Staff,2601,REDACTED,08/07/2014,387198,429.2,NET,One To One Recruitment,04752H
Gloucester City Council,23UE,Emergency Out Of Hours Calls,RB301,Fees For Services Received,5350,Call Usage June 2014,08/07/2014,386975,75.14,NET,Office Response,09439K
Gloucester City Council,23UE,Environmental Planning,LM340,Operational Materials,5070,Climbing Wall,08/07/2014,387189,495.83,NET,Funtime Bounce Ltd,15136D
Gloucester City Council,23UE,Financial Services,RT200,Consultants Fees,5349,REDACTED,08/07/2014,387176,2175,NET,Robert Half Ltd,03959K
Gloucester City Council,23UE,Folk Museum,LM210,Advertising And Publicity,5702,Distribution gloucester museums whats on,08/07/2014,387180,319.4,NET,Glide Media,58829J
Gloucester City Council,23UE,Folk Museum,LM210,Misc Fixtures And Fittings,3500,Poster A-Board,08/07/2014,387181,148.95,NET,Greenbarnes Ltd,14845Z
Gloucester City Council,23UE,Kings Quarter,RY146,Contract Payments,0020,Professional Services,08/07/2014,387188,250,CAP,Julian Stokes Management Ltd,09046K
Gloucester City Council,23UE,Legal Services,RS200,Basic Pay -Admin /Prof Staff,2601,REDACTED,08/07/2014,385690,661.68,NET,Sellick Partnership Group Ltd,11057C
Gloucester City Council,23UE,Legal Services,RS200,Basic Pay -Admin /Prof Staff,2601,REDACTED,08/07/2014,386057,511.56,NET,Sellick Partnership Group Ltd,11057C
Gloucester City Council,23UE,Legal Services,RS200,Basic Pay -Admin /Prof Staff,2601,REDACTED,08/07/2014,384746,648.36,NET,Sellick Partnership Group Ltd,11057C
Gloucester City Council,23UE,Legal Services,RS200,Basic Pay -Admin /Prof Staff,2601,REDACTED,08/07/2014,385071,565.56,NET,Sellick Partnership Group Ltd,11057C
Gloucester City Council,23UE,Legal Services,RS200,Basic Pay - Temporary Staff,2751,REDACTED,08/07/2014,386702,1049.78,NET,Venn Group Ltd,04339P
Gloucester City Council,23UE,Legal Services,RS200,Printing,5300,REDACTED,08/07/2014,387173,150,NET,Heron Land Developments Ltd,15141L
Gloucester City Council,23UE,Members Support,RC300,Members Training,5535,Conference Fee,08/07/2014,382513,495,NET,Local Government Association,11683F
Gloucester City Council,23UE,Members Support,RC300,Members Training,5535,Conference Fee,08/07/2014,382514,495,NET,Local Government Association,11683F
Gloucester City Council,23UE,Members Support,RC300,Members Training,5535,Conference Fee,08/07/2014,382515,495,NET,Local Government Association,11683F
Gloucester City Council,23UE,Mortgage Rescue,CH128,Fees For Services Received,5350,REDACTED,08/07/2014,387197,571.2,NET,One To One Recruitment,04752H
Gloucester City Council,23UE,National Express,LT105,Materials For Sale,5080,Coach Tickets June 2014,08/07/2014,387194,13344.8,NET,National Express Ltd,31455K
Gloucester City Council,23UE,National Express,LT105,Sale Of Goods And Services,9230,Coach Tickets June 2014,08/07/2014,387194,-1293.14,NET,National Express Ltd,31455K
Gloucester City Council,23UE,Postal Services,RS120,Postages,5400,Post 13/06 - 26/06 2014,08/07/2014,387030,2872.7,NET,Royal Mail S.Wales & South West,35830S
Gloucester City Council,23UE,Retail Market - Landlord,HM300,Cleaning Materials,3600,BLEACH,08/07/2014,383677,3.89,NET,Core Hygiene Ltd,03885P
Gloucester City Council,23UE,Senior Management Restructurin,RO200,Pension Contribs Incl Backf,2901,REDACTED,08/07/2014,386387,6196.19,NET,Gloucestershire County Council,10614L
Gloucester City Council,23UE,Theatre Tokens,LT106,Materials For Sale,5080,Theatre Tickets June 2014,08/07/2014,387193,165,NET,Society Of London Theatre,05656Z
Gloucester City Council,23UE,Theatre Tokens,LT106,Sale Of Goods And Services,9230,Theatre Tickets June 2014,08/07/2014,387193,-8.25,NET,Society Of London Theatre,05656Z
Gloucester City Council,23UE,Tic Trading,LT110,Materials For Sale,5080,Greeting Cards,08/07/2014,386175,216,NET,REDACTED,REDACTED
Gloucester City Council,23UE,Tic Trading,LT110,Materials For Sale,5080,Logo Caps,08/07/2014,386992,112.5,NET,Sportfolio Europe Lp,14456R
Gloucester City Council,23UE,Tic Trading,LT110,Materials For Sale,5080,Plain Polo and Logo Tee,08/07/2014,386993,587.5,NET,Sportfolio Europe Lp,14456R
Gloucester City Council,23UE,Tic Trading,LT110,Materials For Sale,5080,Window Sales June 2014,08/07/2014,387200,21.6,NET,Gloucestershire Arts & Crafts Cen,69547RV
Gloucester City Council,23UE,Tic Trading,LT110,Sale Of Goods And Services,9230,Window Sales June 2014,08/07/2014,387200,-1.8,NET,Gloucestershire Arts & Crafts Cen,69547RV
Gloucester City Council,23UE,Tourism Marketing,LT100,Other Minor Supplies Services,5590,"Hygiene Unit, TIC",08/07/2014,387000,6.12,NET,Ocs Group Uk Limited T/A Cannon,06506A
Gloucester City Council,23UE,Wake Room,HC501,Maint Agreements - Buildings,3010,Monthly Machine Warranty,08/07/2014,385076,61.58,NET,Caffeica Ltd,11923J
Gloucester City Council,23UE,Wake Room,HC501,Maint Agreements - Buildings,3010,Monthly Machine Warranty,08/07/2014,386693,61.58,NET,Caffeica Ltd,11923J
Gloucester City Council,23UE,Business Support,PT250,Fuel,4012,Fuel June 14,09/07/2014,387187,248.5,NET,Allstar Business Solutions Ltd (Arval),06594A
Gloucester City Council,23UE,Business Transformation & Tech,RT700,Computer Hardware <5000,5420,Canon Powershot,09/07/2014,386880,77,NET,Qual Technology,56512N
Gloucester City Council,23UE,Contact Centre,RB300,Basic Pay -Admin /Prof Staff,2601,REDACTED,09/07/2014,387140,847,NET,Venn Group Ltd,04339P
Gloucester City Council,23UE,Depot,PY109,Contract Payments,0020,Scaffold parts,09/07/2014,387199,133.68,CAP,Ermin Plant Hire & Services Ltd,14150V
Gloucester City Council,23UE,Docks Complex - Catering Servs,RB110,Catering Provisions -Food,5110,Food w/e 29/06/2014,09/07/2014,386985,98.81,NET,Janes Pantry,24500W
Gloucester City Council,23UE,Docks Complex - Services,RB100,General Repair/Maint Buildings,3000,07/03/2014 replace springs in lock,09/07/2014,387139,110,NET,Severnside Security Ltd,14661M
Gloucester City Council,23UE,Docks Complex - Services,RB100,General Repair/Maint Buildings,3000,Supply and fit locks and handles,09/07/2014,387138,257.5,NET,Severnside Security Ltd,14661M
Gloucester City Council,23UE,Docks Complex - Services,RB100,Recycling,3631,"Recycling, Bottles, Cans etc.",09/07/2014,386956,197,NET,Printwaste Recycling,57114W
Gloucester City Council,23UE,Docks Complex - Services,RB100,Recycling,3631,Shredding June 2014,09/07/2014,387034,150.2,NET,Printwaste Recycling,57114W
Gloucester City Council,23UE,Environmental Planning,LM340,Exhibits And Collections,5038,Plan/Survey drawing,09/07/2014,387146,30,NET,English Heritage,08249C
Gloucester City Council,23UE,Environmental Planning,LM340,Operational Materials,5070,Activities for Go Wild Event 29/06/2014,09/07/2014,387147,325,NET,Play Gloucestershire,06404K
Gloucester City Council,23UE,General Drainage Works,PY241,Contract Payments,0020,"Bourton Road, Turf watering",09/07/2014,387182,120,CAP,Greenfields Garden Services Ltd,48130G
Gloucester City Council,23UE,General Drainage Works,PY241,Contract Payments,0020,St Peters School 15/05- 17/05/14,09/07/2014,386072,960,CAP,Three Counties Drain Service,44033V
Gloucester City Council,23UE,Gloucester Partnership,FP106,Fees For Services Received,5350,Glos partnership 14/15,09/07/2014,386861,995,NET,Icon.Net,52505Z
Gloucester City Council,23UE,Group Mgr Planning & Economy,GR101,Basic Pay - Temporary Staff,2751,REDACTED,09/07/2014,386243,2475,NET,Randstad Cpe Ltd,13987L
Gloucester City Council,23UE,Group Mgr Planning & Economy,GR101,Basic Pay - Temporary Staff,2751,REDACTED,09/07/2014,386244,2475,NET,Randstad Cpe Ltd,13987L
Gloucester City Council,23UE,Group Mgr Planning & Economy,GR101,Basic Pay - Temporary Staff,2751,REDACTED,09/07/2014,386816,2475,NET,Randstad Cpe Ltd,13987L
Gloucester City Council,23UE,Group Mgr Planning & Economy,GR101,Basic Pay - Temporary Staff,2751,REDACTED,09/07/2014,387144,2475,NET,Randstad Cpe Ltd,13987L
Gloucester City Council,23UE,REDACTED,REDACTED,REDACTED,REDACTED,REDACTED,09/07/2014,REDACTED,170,NET,REDACTED,REDACTED
Gloucester City Council,23UE,Hempsted Market/Car Boot,HM234,Hire Of Equipment,5020,32' Portable Office,09/07/2014,387164,254.19,NET,Portable Offices (Hire ) Ltd*,06286R
Gloucester City Council,23UE,Homelessness,CH120,Rent In Advance,5516,REDACTED,09/07/2014,387281,484.6,NET,REDACTED,REDACTED
Gloucester City Council,23UE,Homelessness Prevention,CH122,Fees For Services Received,5350,REDACTED,09/07/2014,387281,500,NET,REDACTED,REDACTED
Gloucester City Council,23UE,Nms Contract,HI102,Safety Equipment,5013,Jackets,09/07/2014,386957,103.35,NET,Safpro Industrial Supply Co,39190W
Gloucester City Council,23UE,Nms Contract,HI102,Safety Equipment,5013,Poloshirts,09/07/2014,386060,31.4,NET,Safpro Industrial Supply Co,39190W
Gloucester City Council,23UE,Off Street Car Parks,PP110,General Repair/Maint Buildings,3000,"Westgate Car Park, Replacement Sign",09/07/2014,387160,82.5,NET,Hanman Split Ltd,56889J
Gloucester City Council,23UE,Printing,RP103,Printing,5300,Print Room Sales June 2014,09/07/2014,386995,1527.06,NET,Alpha Colour Printers Ltd,00945B
Gloucester City Council,23UE,Stationery Services,RS150,Stationery,5302,Product: 2691450OP903,09/07/2014,387155,42.07,NET,Stanford Marsh Ltd*,51139M
Gloucester City Council,23UE,Stationery Services,RS150,Stationery,5302,Stationary,09/07/2014,386547,43.18,NET,Lyreco Uk Ltd,11746G
Gloucester City Council,23UE,Allotments,HI104,Tools,5014,Padlock and Key,10/07/2014,386868,136.46,NET,Gloucester Locksmiths,18160C
Gloucester City Council,23UE,Asset Management,RS300,Basic Pay - Temporary Staff,2751,REDACTED,10/07/2014,386093,1222.29,NET,Hays Specialist Recruitment Ltd,55516P
Gloucester City Council,23UE,Business Support,PT250,Fuel,4012,Fuel June 14,10/07/2014,387316,53.59,NET,Allstar Business Solutions Ltd (Arval),06594A
Gloucester City Council,23UE,Cemeteries,HC300,Maint Of Grounds - General,3030,Cambrian Green,10/07/2014,387247,195,NET,Allstone Sand & Gravel Aggregates Ltd,00940M
Gloucester City Council,23UE,Cemeteries,HC300,Operational Materials,5070,Sand & Cement Bags,10/07/2014,387246,350,NET,Allstone Sand & Gravel Aggregates Ltd,00940M
Gloucester City Council,23UE,Cemeteries,HC300,Trade Refuse Tipping Fees,6297,Builder Skip June 2014,10/07/2014,387275,765,NET,Allstone Sand & Gravel Aggregates Ltd,00940M
Gloucester City Council,23UE,Cemeteries,HC300,Trade Refuse Tipping Fees,6297,Weekly Hire of Dumper June 14,10/07/2014,387248,380,NET,Allstone Sand & Gravel Aggregates Ltd,00940M
Gloucester City Council,23UE,Cemeteries,HC300,Trade Refuse Tipping Fees,6297,Yard Rolonof,10/07/2014,387276,360,NET,Allstone Sand & Gravel Aggregates Ltd,00940M
Gloucester City Council,23UE,Civil Parking Enforcement,PT741,Basic Pay - Temporary Staff,2751,REDACTED,10/07/2014,386581,2400,NET,Unity Recruitment,14857S
Gloucester City Council,23UE,Civil Parking Enforcement,PT741,Basic Pay - Temporary Staff,2751,REDACTED,10/07/2014,387027,2400,NET,Unity Recruitment,14857S
Gloucester City Council,23UE,Client Revs & Bens Contract,RT240,Bailiffs Fees,5368,VAT due on statutory fees,10/07/2014,385902,0,NET,Bristow & Sutor,05450M
Gloucester City Council,23UE,Client Revs & Bens Contract,RT240,Bailiffs Fees,5368,VAT on statutory fees,10/07/2014,387165,0,NET,Bristow & Sutor,05450M
Gloucester City Council,23UE,Client Revs & Bens Contract,RT240,Bailiffs Fees,5368,VAT on statutory fees,10/07/2014,387166,0,NET,Bristow & Sutor,05450M
Gloucester City Council,23UE,Client Revs & Bens Contract,RT240,Bailiffs Fees,5368,VAT on statutory fees,10/07/2014,387168,14.93,NET,Bristow & Sutor,05450M
Gloucester City Council,23UE,Crematorium,HC200,Cleaning Materials,3600,Cleaning Materials,10/07/2014,387245,46.72,NET,Spaldings,48759Y
Gloucester City Council,23UE,Crematorium,HC200,Repair/Maint Of Fixed Plant,3006,Carbon Reagent,10/07/2014,387244,1689.96,NET,Facultatieve Technologies Ltd,51210H
Gloucester City Council,23UE,Docks Complex - Services,RB100,Cleaning Materials,3600,Cleaning materials,10/07/2014,387259,176.19,NET,Core Hygiene Ltd,03885P
Gloucester City Council,23UE,General Works Fund,RY203,Consultants Fees,0030,REDACTED,10/07/2014,386873,646,CAP,Find The Engineer Recruitment Ltd*,12977Z
Gloucester City Council,23UE,Gloucester Guildhall,LA100,Advertising And Publicity,5702,Advertisements 28/06/2014,10/07/2014,386999,412.49,NET,Local World Ltd,08556P
Gloucester City Council,23UE,REDACTED,REDACTED,REDACTED,REDACTED,REDACTED,10/07/2014,REDACTED,264.57,NET,REDACTED,REDACTED
Gloucester City Council,23UE,Legal Services,RS200,Basic Pay -Admin /Prof Staff,2601,REDACTED,10/07/2014,386860,691.92,NET,Sellick Partnership Group Ltd,11057C
Gloucester City Council,23UE,Legal Services,RS200,Basic Pay -Admin /Prof Staff,2601,REDACTED,10/07/2014,386863,502.56,NET,Sellick Partnership Group Ltd,11057C
Gloucester City Council,23UE,Legal Services,RS200,Basic Pay - Temporary Staff,2751,REDACTED,10/07/2014,387141,1076.7,NET,Venn Group Ltd,04339P
Gloucester City Council,23UE,Museum Phase 2 Hlf,GY001,Contract Payments,0020,Final 3 days work on HLF application,10/07/2014,387252,1350,CAP,REDACTED,REDACTED
Gloucester City Council,23UE,Nms Contract,HI102,Contracted Services,6970,INVOICE INPUT INCORRECTLY,10/07/2014,387351,1616.8,NET,Enterprise (Aol) Ltd,06695G
Gloucester City Council,23UE,Nms Contract,HI102,Safety Equipment,5013,CREDITED ON 3811,10/07/2014,387282,34.45,NET,Safpro Industrial Supply Co,39190W
Gloucester City Council,23UE,Nms Contract,HI102,Safety Equipment,5013,CREDITED ON 3811,10/07/2014,387283,68.9,NET,Safpro Industrial Supply Co,39190W
Gloucester City Council,23UE,Nms Contract,HI102,Safety Equipment,5013,Overtrousers & Jacket,10/07/2014,386052,44.7,NET,Safpro Industrial Supply Co,39190W
Gloucester City Council,23UE,Nms Contract,HI102,Safety Equipment,5013,Overtrousers & Jacket,10/07/2014,386061,14.7,NET,Safpro Industrial Supply Co,39190W
Gloucester City Council,23UE,Nms Contract,HI102,Safety Equipment,5013,safety clothing,10/07/2014,385581,189.69,NET,Safpro Industrial Supply Co,39190W
Gloucester City Council,23UE,Stationery Services,RS150,Stationery,5302,Stationary,10/07/2014,386546,125.2,NET,Lyreco Uk Ltd,11746G
Gloucester City Council,23UE,Tic Relocation,GY005,Contract Payments,0020,REDACTED,10/07/2014,386874,712.5,CAP,Find The Engineer Recruitment Ltd*,12977Z
Gloucester City Council,23UE,Tic Trading,LT110,Materials For Sale,5080,Rugby Shirts,10/07/2014,387243,300,NET,Sportfolio Europe Lp,14456R
Gloucester City Council,23UE,Asset Management,RS300,Basic Pay - Temporary Staff,2751,Consultancy Services June 2014,11/07/2014,387324,6825,NET,Ardley Associates,09369F
Gloucester City Council,23UE,Docks Complex - Catering Servs,RB110,Catering Provisions -Food,5110,Food,11/07/2014,387328,405.58,NET,3663,55585U
Gloucester City Council,23UE,Docks Complex - Catering Servs,RB110,Catering Provisions -Food,5110,Food,11/07/2014,387331,272.6,NET,3663,55585U
Gloucester City Council,23UE,Docks Complex - Catering Servs,RB110,Catering Provisions -Food,5110,Food,11/07/2014,387353,432.88,NET,3663,55585U
Gloucester City Council,23UE,Docks Complex - Services,RB100,Cleaning Materials,3600,Cleaning Materials,11/07/2014,387256,41.48,NET,Cleanmy Ltd,06971S
Gloucester City Council,23UE,Docks Complex - Services,RB100,Lift Maintenance,3051,Engineer 19/06/2014,11/07/2014,387191,38.29,NET,Pickerings Europe Ltd*,58816U
Gloucester City Council,23UE,Docks Complex - Services,RB100,Operational Equipment <5000,5012,Call out,11/07/2014,387148,161,NET,Rs Maintenance,14314N
Gloucester City Council,23UE,Docks Complex - Services,RB100,Operational Equipment <5000,5012,ofice furniture & WEEE collection MAY14,11/07/2014,387382,62.5,NET,Archer Recycling,11021G
Gloucester City Council,23UE,Economic Development,FP300,Other Minor Supplies Services,5590,Membership 2014,11/07/2014,387265,295,NET,Coach Tourism Council,48015H
Gloucester City Council,23UE,Financial Services,RT200,Consultants Fees,5349,REDACTED,11/07/2014,385960,3975,NET,Robert Half Ltd,03959K
Gloucester City Council,23UE,Financial Services,RT200,Consultants Fees,5349,REDACTED,11/07/2014,386230,3975,NET,Robert Half Ltd,03959K
Gloucester City Council,23UE,Financial Services,RT200,Consultants Fees,5349,REDACTED,11/07/2014,386678,3975,NET,Robert Half Ltd,03959K
Gloucester City Council,23UE,Financial Services,RT200,Consultants Fees,5349,REDACTED,11/07/2014,387177,3975,NET,Robert Half Ltd,03959K
Gloucester City Council,23UE,Food Safety,HE100,Other Minor Supplies Services,5590,Mini probe wipes,11/07/2014,387240,24,NET,Electronic Temperature Instruments Ltd,04785K
Gloucester City Council,23UE,Gl1 Pool Air Handling System,LY152,Contract Payments,0020,Tender return fee,11/07/2014,382273,455,CAP,Rpa,01710Y
Gloucester City Council,23UE,Gloucester Guildhall,LA100,Security Services Fees,5351,Door Staff June 2014,11/07/2014,387317,1682.63,NET,Nsgl Ltd,12539E
Gloucester City Council,23UE,Hempsted Market/Car Boot,HM234,Maint Of Grounds - General,3030,"Grass Cutting, Hempsted Meadows June 14",11/07/2014,387251,400,NET,REDACTED,REDACTED
Gloucester City Council,23UE,Hempsted Market/Car Boot,HM234,Maint Of Grounds - General,3030,Topping at Hempsted,11/07/2014,387261,646.8,NET,REDACTED,REDACTED
Gloucester City Council,23UE,Hempsted Market/Car Boot,HM234,Sewerage And Environ Charges,3402,Cleaning materials,11/07/2014,387250,456.4,NET,Abbey Loos Limited,10787B
Gloucester City Council,23UE,Hempsted Market/Car Boot,HM234,Sewerage And Environ Charges,3402,Toilet Rolls,11/07/2014,387249,34.72,NET,Abbey Loos Limited,10787B
Gloucester City Council,23UE,Hkp Accomodation Review,RY163,Contract Payments,0020,7 yard skip May14,11/07/2014,387383,210,CAP,Archer Recycling,11021G
Gloucester City Council,23UE,Homelessness,CH120,Fees For Services Received,5350,Medical Advice,11/07/2014,387315,105,NET,Now Medical,03468L
Gloucester City Council,23UE,Homelessness,CH120,Removal And Storage Fees,5513,REDACTED,11/07/2014,387312,135,NET,Advanced Removals & Storage Ltd,57142R
Gloucester City Council,23UE,Homelessness,CH120,Rent In Advance,5516,REDACTED,11/07/2014,387379,484.6,NET,REDACTED,REDACTED
Gloucester City Council,23UE,Homelessness Prevention,CH122,Fees For Services Received,5350,REDACTED,11/07/2014,387379,500,NET,REDACTED,REDACTED
Gloucester City Council,23UE,Homelessness Prevention,CH122,Fees For Services Received,5350,Medical Questionnaire,11/07/2014,387326,20.5,NET,REDACTED,REDACTED
Gloucester City Council,23UE,Investment Property,RB500,Repair/Maint Of Fixed Plant,3006,Maintenance Inspection 23/06/2014,11/07/2014,387032,408,NET,Cooltherm,06087Z
Gloucester City Council,23UE,Legal Services,RS200,Basic Pay -Admin /Prof Staff,2601,REDACTED,11/07/2014,387327,910,NET,Michael Page International Recruitment Ltd,06601P
Gloucester City Council,23UE,Legal Services,RS200,Basic Pay - Temporary Staff,2751,REDACTED,11/07/2014,387179,487.29,NET,Premiere Employment Ltd,55468Z
Gloucester City Council,23UE,Legal Services,RS200,Publications,5060,Planning cont their enforce rel 12,11/07/2014,387161,49,NET,Thomson Reuters,43110M
Gloucester City Council,23UE,Off Street Car Parks,PP110,Buildings Insurance,3800,Car Park Office Insurance 14/15,11/07/2014,386408,28.39,NET,Workman Llp,11021M
Gloucester City Council,23UE,Off Street Car Parks,PP110,Buildings Insurance,3800,"Eastgate Shopping Centre Car Park, Insur",11/07/2014,386587,784.41,NET,Workman Llp,11021M
Gloucester City Council,23UE,Off Street Car Parks,PP110,Buildings Insurance,3800,Pedestrian Access Insurance 14/15,11/07/2014,386407,101,NET,Workman Llp,11021M
Gloucester City Council,23UE,Off Street Car Parks,PP110,General Repair/Maint Buildings,3000,"P&D, UK Selector",11/07/2014,387270,416.75,NET,Parkeon Ltd,03238G
Gloucester City Council,23UE,Rehousing,CH111,Basic Pay - Temporary Staff,2751,REDACTED,11/07/2014,387271,608,NET,Building Recruitment Company Ltd,55385E
Gloucester City Council,23UE,Retail Market - Landlord,HM300,Operational Equipment <5000,5012,Rental of P75s Compactor,11/07/2014,387242,280.56,NET,System Rental Uk Ltd,03239E
Gloucester City Council,23UE,Safer Stronger Communities,FP841,Other Minor Supplies Services,5590,3500 Wristbands,11/07/2014,387239,950,NET,Icontact Advertising,05548T
Gloucester City Council,23UE,Shopmobility,PE200,Cleaning Materials,3600,Medical Unit,11/07/2014,386994,7.11,NET,Ocs Group Uk Limited T/A Cannon,06506A
Gloucester City Council,23UE,Tea Room,HC500,Catering Provisions -Liquor,5111,Liquor,11/07/2014,387325,159.87,NET,Cellar Supplies Cheltenham Ltd,01563L
Gloucester City Council,23UE,Tic Trading,LT110,Materials For Sale,5080,Gloucester DVD,11/07/2014,387262,92.7,NET,1st Take Ltd,05598B
Gloucester City Council,23UE,Tourism Marketing,LT100,Window Cleaning,3610,Window Cleaning Weekly,11/07/2014,387313,24,NET,Interserve Fs (Uk) Limited,00442K
Gloucester City Council,23UE,Wake Room,HC501,Catering Provisions -Food,5110,Food,11/07/2014,387329,130,NET,3663,55585U
Gloucester City Council,23UE,Wake Room,HC501,Catering Provisions -Food,5110,Food,11/07/2014,387330,291.65,NET,3663,55585U
Gloucester City Council,23UE,Wake Room,HC501,Catering Provisions -Food,5110,Food,11/07/2014,387332,22.57,NET,Total Produce Gloucester,12645E
Gloucester City Council,23UE,Wake Room,HC501,Catering Provisions -Food,5110,Food,11/07/2014,387333,22.92,NET,Total Produce Gloucester,12645E
Gloucester City Council,23UE,Wake Room,HC501,Catering Provisions -Food,5110,Food,11/07/2014,387334,27.65,NET,Total Produce Gloucester,12645E
Gloucester City Council,23UE,Wake Room,HC501,Catering Provisions -Food,5110,Food,11/07/2014,387335,42.63,NET,Total Produce Gloucester,12645E
Gloucester City Council,23UE,Wake Room,HC501,Catering Provisions -Food,5110,Food,11/07/2014,387336,62.87,NET,Total Produce Gloucester,12645E
Gloucester City Council,23UE,Wake Room,HC501,Catering Provisions -Food,5110,Food,11/07/2014,387337,14.64,NET,Total Produce Gloucester,12645E
Gloucester City Council,23UE,Wake Room,HC501,Catering Provisions -Food,5110,Food,11/07/2014,387338,24.71,NET,Total Produce Gloucester,12645E
Gloucester City Council,23UE,Wake Room,HC501,Catering Provisions -Food,5110,Food,11/07/2014,387339,16.71,NET,Total Produce Gloucester,12645E
Gloucester City Council,23UE,Wake Room,HC501,Catering Provisions -Food,5110,Food,11/07/2014,387348,386.29,NET,3663,55585U
Gloucester City Council,23UE,Wake Room,HC501,Catering Provisions -Food,5110,Food,11/07/2014,387349,148.97,NET,3663,55585U
Gloucester City Council,23UE,Wake Room,HC501,Cleaning Materials,3600,Cleaning Materials,11/07/2014,387347,13.08,NET,3663,55585U
Gloucester City Council,23UE,Wake Room,HC501,Cleaning Materials,3600,Food,11/07/2014,387350,44.08,NET,3663,55585U
Gloucester City Council,23UE,Wake Room,HC501,Cleaning Materials,3600,Food,11/07/2014,387352,103.24,NET,3663,55585U
Gloucester City Council,23UE,Wake Room,HC501,Other Minor Supplies Services,5590,Flowers,11/07/2014,387340,40.8,NET,Carols Florist,01274X
Gloucester City Council,23UE,Asset Management,RS300,Basic Pay - Temporary Staff,2751,REDACTED,14/07/2014,387342,2400,NET,Unity Recruitment,14857S
Gloucester City Council,23UE,Building Control,PT400,Car Allows -Cas. User Mileage,4102,REDACTED,14/07/2014,384958,31.2,NET,Brg Interim Solutions,14065L
Gloucester City Council,23UE,Business Transformation & Tech,RT700,Computer Network Maintenance,5443,Changes to GCC Reception,14/07/2014,385153,2427.49,NET,Cablecom Networking Ltd,56318L
Gloucester City Council,23UE,Cctv Revenue Budget,FP501,Security Equipment Serv/Repair,3038,Vehicle & Operative,14/07/2014,387355,800,NET,Southern Electric Contracting Ltd*,08337R
Gloucester City Council,23UE,Civica Fod Contract,RT260,Contracted Services,6970,Revenues& Benefits Charges Q2 14,14/07/2014,387001,191455.02,NET,Civica Uk Ltd,10841X
Gloucester City Council,23UE,Civil Parking Enforcement,PT741,Contracted Services,6970,Variable Services June 2014,14/07/2014,387163,20413.91,NET,Apcoa Parking (Uk) Ltd,09954M
Gloucester City Council,23UE,Civil Parking Enforcement,PT741,On Street Parking Charges,6550,"Cost of parking income, May 2014",14/07/2014,387167,34137.4,NET,Gloucestershire County Council,18650D
Gloucester City Council,23UE,Community Safety Projects,FP500,Basic Pay - Temporary Staff,2751,REDACTED,14/07/2014,387190,510.52,NET,Travail Employment Ltd,49371W
Gloucester City Council,23UE,Corporate Reporting /Financing,RC504,Fees For Services Received,5350,Childcare Vouchers July 2014,14/07/2014,387319,34.05,NET,Wider Plan Ltd ( Formerly Kiddivouchers),07893B
Gloucester City Council,23UE,Countryside Unit,LP201,General Repair/Maint Buildings,3000,Supply of 4 keyfobs,14/07/2014,386857,25,NET,Adt Fire & Security Plc,54086D
Gloucester City Council,23UE,Disabled Facilities Grants,CY013,Disabled Facility Grants,0074,REDACTED,14/07/2014,387427,169.5,CAP,Severn Trent Water Ltd,04182Z
Gloucester City Council,23UE,Docks Complex - Castlemeads Cp,RB210,Contracted Services,6970,Variable Services June 2014,14/07/2014,387163,3172.68,NET,Apcoa Parking (Uk) Ltd,09954M
Gloucester City Council,23UE,Docks Complex - Services,RB100,Operational Equipment <5000,5012,"Herbert Warehouse, cups",14/07/2014,387151,180,NET,Greenworks Solutions Ltd,05909G
Gloucester City Council,23UE,Dwelling Improvements,BY008,Contract Payments,0020,Capital fees Apr-May14,14/07/2014,385878,1127071.26,CAP,Gloucester City Homes,05244T
Gloucester City Council,23UE,Enhanced Lighting Schemes,PY118,Contract Payments,0020,"Lighting, Eastgate Viewing Chamber",14/07/2014,386058,3980.62,CAP,Scs Installations Ltd,10383G
Gloucester City Council,23UE,Flooding And Drainage,HE306,Maint Of Grounds - General,3030,Clearance of Twyver Way 23/06/14,14/07/2014,387149,60,NET,Tcv T/A The Conservation Volunteers,55897V
Gloucester City Council,23UE,Folk Museum Catering,LM211,Other Catering Provisions,5112,goods for resale,14/07/2014,387420,144.83,NET,Ukv Solutions Ltd,14864V
Gloucester City Council,23UE,Forest Of Dean Cpe,PT744,Contracted Services,6970,Variable Services June 2014,14/07/2014,387163,1987.25,NET,Apcoa Parking (Uk) Ltd,09954M
Gloucester City Council,23UE,Forest Of Dean Off Street,PT742,Contracted Services,6970,Variable Services June 2014,14/07/2014,387163,1268.52,NET,Apcoa Parking (Uk) Ltd,09954M
Gloucester City Council,23UE,Gates Streets,GY014,Contract Payments,0020,Contribution towards city centre access,14/07/2014,384520,100000,CAP,Gloucestershire County Council,18650D
Gloucester City Council,23UE,General Works Fund,RY203,Contract Payments,0020,"Guildhall toilets, 29/04/2014",14/07/2014,386834,520,CAP,Three Counties Drain Service,44033V
Gloucester City Council,23UE,Green Transport Policy,PJ130,Overtime - Cleaners,2403,Smart for two coupe,14/07/2014,386983,287.35,NET,Daimler Fleet Management,07828N
Gloucester City Council,23UE,Guildhall Cinema,LA202,Fees For Services Received,5350,Monthly Film Charge July 14,14/07/2014,387169,214.24,NET,Nft Logistics Ltd,13505N
Gloucester City Council,23UE,REDACTED,REDACTED,REDACTED,REDACTED,REDACTED,14/07/2014,REDACTED,133.13,NET,REDACTED,REDACTED
Gloucester City Council,23UE,Hackney Carriages,HL100,Fees For Services Received,5350,DVLA Electronic Test,14/07/2014,387175,79.75,NET,Intelligent Data Systems (Uk) Ltd,11067G
Gloucester City Council,23UE,Investment Property,RB500,Fire Alarm Maintenance,3053,Inspections,14/07/2014,387028,371.07,NET,Adt Fire & Security Plc,54086D
Gloucester City Council,23UE,Investment Property,RB500,Fire Alarm Maintenance,3053,Inspections,14/07/2014,387029,2606.78,NET,Adt Fire & Security Plc,54086D
Gloucester City Council,23UE,Investment Property,RB500,Repair/Maint Of Fixed Plant,3006,Maintenance Inspection June 2014,14/07/2014,387031,210,NET,Cooltherm,06087Z
Gloucester City Council,23UE,Off Street Car Parks,PP110,Contracted Services,6970,Variable Services June 2014,14/07/2014,387163,12882.37,NET,Apcoa Parking (Uk) Ltd,09954M
Gloucester City Council,23UE,Off Street Car Parks,PP110,Fees For Services Received,5350,Services for Parking Equipment July 2014,14/07/2014,386877,518.26,NET,Parkeon Ltd,03238G
Gloucester City Council,23UE,Procurement Management,RP100,Vocational Training,2970,Training Courses 16/09/2014,14/07/2014,386852,117.5,NET,Bip Solutions Ltd,14920L
Gloucester City Council,23UE,Public Health,HD200,Other Minor Supplies Services,5590,12 Monthly Sessions 2014,14/07/2014,386174,900,NET,The Golden-Oldies Charity,14944W
Gloucester City Council,23UE,Public Health,HD200,Other Minor Supplies Services,5590,Workshops & Celebration event,14/07/2014,387321,3250,NET,Nathan Timothy Foundation,15181E
Gloucester City Council,23UE,Registration Of Electors,RS400,Fees For Services Received,5350,Hire of OITC for 2014 Elections,14/07/2014,386922,576,NET,Aspire Sports & Cultural Trust,08135V
Gloucester City Council,23UE,Registration Of Electors,RS400,Fees For Services Received,5350,Polling Booth Delivery 19/05/2014,14/07/2014,386954,1250,NET,Armstrong Removals,04632N
Gloucester City Council,23UE,Retail Market - Landlord,HM300,Window Cleaning,3610,Nov13 markets window cleaning,14/07/2014,387384,260,NET,Cornwall Cleaning Services,14050A
Gloucester City Council,23UE,Solace Project,FP843,Other Minor Supplies Services,5590,APR- MAY 14 ASB,14/07/2014,385877,6500,NET,Gloucester City Homes,05244T
Gloucester City Council,23UE,Solace Project,FP843,Other Minor Supplies Services,5590,ASB Salary Charge June 2014,14/07/2014,386846,3250,NET,Gloucester City Homes,05244T
Gloucester City Council,23UE,Superbreak,LT104,Materials For Sale,5080,Ambassadors Bloomsbury 08/07/2014,14/07/2014,387264,209,NET,Superbreak Mini Holidays,00712D
Gloucester City Council,23UE,Superbreak,LT104,Materials For Sale,5080,Britannia Hotel & Madame Tussauds 11/07/,14/07/2014,387263,252,NET,Superbreak Mini Holidays,00712D
Gloucester City Council,23UE,Superbreak,LT104,Sale Of Goods And Services,9230,Ambassadors Bloomsbury 08/07/2014,14/07/2014,387264,-17.41,NET,Superbreak Mini Holidays,00712D
Gloucester City Council,23UE,Superbreak,LT104,Sale Of Goods And Services,9230,Britannia Hotel & Madame Tussauds 11/07/,14/07/2014,387263,-20.99,NET,Superbreak Mini Holidays,00712D
Gloucester City Council,23UE,Swrda Asset Transfer,RY184,Contract Payments,0020,"Blackfriars Car Park, Fencing",14/07/2014,385405,3773,CAP,Greenfields Garden Services Ltd,48130G
Gloucester City Council,23UE,Swrda Property Tfr,RB503,Grants To Voluntary Orgs-Rents,7100,grant payment re Project Pilgrim,14/07/2014,387429,50000,NET,Chapter Of Gloucester Cathedral,53250RV
Gloucester City Council,23UE,Waterwells Park And Ride,PJ120,Contracted Services,6970,Variable Services June 2014,14/07/2014,387163,388,NET,Apcoa Parking (Uk) Ltd,09954M
Gloucester City Council,23UE,Asset Management,RS300,Survey Fees,5381,"PPM Survey, GL1",15/07/2014,387009,7890,NET,Sweett (Uk) Ltd,14770R
Gloucester City Council,23UE,Business Transformation & Tech,RT700,Computer Hardware <5000,5420,500GB Pluggable,15/07/2014,387277,298,NET,Qual Technology,56512N
Gloucester City Council,23UE,Business Transformation & Tech,RT700,Computer Hardware Maintenance,5426,Maintenance Agreement,15/07/2014,385943,168.84,NET,Stanford Marsh Ltd*,51139M
Gloucester City Council,23UE,Business Transformation & Tech,RT700,Computer Software Maintenance,5427,18 Office Connect Licences,15/07/2014,386360,401.96,NET,Northgate Information Solutions Uk Ltd,08982S
Gloucester City Council,23UE,Business Transformation & Tech,RT700,Computer Software Maintenance,5427,18 Office Connect Licences for Building,15/07/2014,386363,266.98,NET,Northgate Information Solutions Uk Ltd,08982S
Gloucester City Council,23UE,Business Transformation & Tech,RT700,Computer Software Maintenance,5427,Annual Maintenance of flex system,15/07/2014,385317,1049.16,NET,Clarity Retail Systems,10290R
Gloucester City Council,23UE,Business Transformation & Tech,RT700,Computer Software Maintenance,5427,Annual Software Support,15/07/2014,386559,1853.97,NET,Northgate Information Solutions Uk Ltd,08982S
Gloucester City Council,23UE,Business Transformation & Tech,RT700,Computer Software Maintenance,5427,Licences for HR,15/07/2014,386560,130.91,NET,Northgate Information Solutions Uk Ltd,08982S
Gloucester City Council,23UE,Business Transformation & Tech,RT700,Computer Software Maintenance,5427,Renewal Maintenance 14-15,15/07/2014,385319,3944.56,NET,Clarity Retail Systems,10290R
Gloucester City Council,23UE,Business Transformation & Tech,RT700,Computer Software Maintenance,5427,Support and Maintenance,15/07/2014,386558,422.5,NET,Northgate Information Solutions Uk Ltd,08982S
Gloucester City Council,23UE,City Museum And Art Gallery,LM200,Publications For Sale,5064,GOODS FOR RESALE,15/07/2014,385641,271.03,NET,Ashwood & Company,51123D
Gloucester City Council,23UE,City Museum And Art Gallery,LM200,Sewerage And Environ Charges,3402,"Medical Unit, 2 weekly",15/07/2014,386996,43.95,NET,Ocs Group Uk Limited T/A Cannon,06506A
Gloucester City Council,23UE,Civica Admin Charges,RT105,Fees For Services Received,5350,CHD Subsription Advance,15/07/2014,387162,4,NET,Companies House,58954E
Gloucester City Council,23UE,Docks Complex - Services,RB100,Lift Maintenance,3051,Engineer for fire system 09/06/2014,15/07/2014,385909,271,NET,Adt Fire & Security Plc,54086D
Gloucester City Council,23UE,Docks Complex - Telephones,RB120,Lease Lines,5411,Rental Charges 2014/15,15/07/2014,385409,10260,NET,Virgin Media Business,01869B
Gloucester City Council,23UE,Docks Complex - Telephones,RB120,Telephones And Fax,5410,Charges May 2014,15/07/2014,385392,1944.42,NET,Everything Everywhere Ltd (T-Mobile),57543S
Gloucester City Council,23UE,Docks Complex - Telephones,RB120,Telephones And Fax,5410,MAY 2014,15/07/2014,385664,3948.11,NET,Gamma Business Communications,10260A
Gloucester City Council,23UE,Docks Complex - Telephones,RB120,Telephones And Fax,5410,Phone Charges,15/07/2014,384536,224.67,NET,Virgin Media Business,01869B
Gloucester City Council,23UE,Folk Museum,LM210,Publications For Sale,5064,GOODS FOR RESALE,15/07/2014,385641,461.71,NET,Ashwood & Company,51123D
Gloucester City Council,23UE,Gloucester Guildhall,LA100,Cleaning Materials,3600,Medical & Hygiene Unit Guildhall,15/07/2014,386998,146.71,NET,Ocs Group Uk Limited T/A Cannon,06506A
Gloucester City Council,23UE,Grants To Voluntary Sector,FG100,Funding Vol&Com Grps-Grants,7100C,Grant Payment 2014-15,15/07/2014,387322,7180,NET,Hucclecote Community Association,23020B
Gloucester City Council,23UE,Guildhall Bar And Caf�,LA210,Other Catering Provisions,5112,Suremix 30 Size V,15/07/2014,386970,18.57,NET,Boc Ltd,59172L
Gloucester City Council,23UE,REDACTED,REDACTED,REDACTED,REDACTED,REDACTED,15/07/2014,REDACTED,2386.25,NET,REDACTED,REDACTED
Gloucester City Council,23UE,Homelessness,CH120,Rent In Advance,5516,REDACTED,15/07/2014,387478,425,NET,REDACTED,REDACTED
Gloucester City Council,23UE,Homelessness,CH120,Rent In Advance,5516,REDACTED,15/07/2014,387501,364.6,NET,Bhp Properties,13948X
Gloucester City Council,23UE,Homelessness Prevention,CH122,Fees For Services Received,5350,REDACTED,15/07/2014,387480,110,NET,REDACTED,REDACTED
Gloucester City Council,23UE,Homelessness Prevention,CH122,Fees For Services Received,5350,REDACTED,15/07/2014,387478,425,NET,REDACTED,REDACTED
Gloucester City Council,23UE,Homelessness Prevention,CH122,Fees For Services Received,5350,REDACTED,15/07/2014,387501,300,NET,Bhp Properties,13948X
Gloucester City Council,23UE,Kings Quarter,RY146,Contract Payments,0020,Kings Square & Quarter Evaluation,15/07/2014,387266,14250,CAP,Cotswold Archaeology Ltd,09180E
Gloucester City Council,23UE,Printing,RP103,Printing,5300,PRINTING,15/07/2014,387005,717,NET,Alpha Colour Printers Ltd,00945B
Gloucester City Council,23UE,Tic Relocation,GY005,Contract Payments,0020,"26 Westgate Street,Site Visit and Survey",15/07/2014,386373,800,CAP,Smith Consult Ltd,13842R
Gloucester City Council,23UE,Wake Room,HC501,Catering Provisions -Food,5110,Food w/e 29/06/2014,15/07/2014,387003,95.21,NET,Janes Pantry,24500W
Gloucester City Council,23UE,Wake Room,HC501,Cleaning Materials,3600,SANITARY UNITS,15/07/2014,385698,33.56,NET,Minster Cleaning Services,02158R
Gloucester City Council,23UE,Wake Room,HC501,Cleaning Materials,3600,Supply of disposal unit,15/07/2014,382617,33.56,NET,Minster Cleaning Services,02158R
Gloucester City Council,23UE,Wake Room,HC501,Cleaning Materials,3600,Supply of Disposal Unit,15/07/2014,384108,33.56,NET,Minster Cleaning Services,02158R
Gloucester City Council,23UE,REDACTED,REDACTED,REDACTED,REDACTED,REDACTED,15/07/2014,REDACTED,122.4,NET,REDACTED,REDACTED
Gloucester City Council,23UE,REDACTED,REDACTED,REDACTED,REDACTED,REDACTED,15/07/2014,REDACTED,61.2,NET,REDACTED,REDACTED
Gloucester City Council,23UE,REDACTED,REDACTED,REDACTED,REDACTED,REDACTED,15/07/2014,REDACTED,234.6,NET,REDACTED,REDACTED
Gloucester City Council,23UE,REDACTED,REDACTED,REDACTED,REDACTED,REDACTED,15/07/2014,REDACTED,257.13,NET,REDACTED,REDACTED
Gloucester City Council,23UE,REDACTED,REDACTED,REDACTED,REDACTED,REDACTED,15/07/2014,REDACTED,757.35,NET,REDACTED,REDACTED
Gloucester City Council,23UE,REDACTED,REDACTED,REDACTED,REDACTED,REDACTED,15/07/2014,REDACTED,195.5,NET,REDACTED,REDACTED
Gloucester City Council,23UE,REDACTED,REDACTED,REDACTED,REDACTED,REDACTED,15/07/2014,REDACTED,80.75,NET,REDACTED,REDACTED
Gloucester City Council,23UE,REDACTED,REDACTED,REDACTED,REDACTED,REDACTED,15/07/2014,REDACTED,276.25,NET,REDACTED,REDACTED
Gloucester City Council,23UE,18 Commercial Road,RB540,General Repair/Maint Buildings,3000,"18 Commercial Road, Hasp and Staple",16/07/2014,386607,47.01,NET,Rf Gardiner Limited,12299B
Gloucester City Council,23UE,Airport Land,RO400,Fees For Services Received,5350,AIRPORT,16/07/2014,387483,3123,NET,Geldards Llp,08628P
Gloucester City Council,23UE,All Main Buildings Voltage Mas,RY180,Contract Payments,0020,"18 Commercial Road, Replace gutters",16/07/2014,386603,1019.56,CAP,Rf Gardiner Limited,12299B
Gloucester City Council,23UE,Allotments,HI104,Operational Materials,5070,Hawthorns allotments,16/07/2014,382055,1434.6,NET,Greenfields Garden Services Ltd,48130G
Gloucester City Council,23UE,Allotments,HI104,Operational Materials,5070,hawthorns allotments item 3 - credited,16/07/2014,387571,596.4,NET,Greenfields Garden Services Ltd,48130G
Gloucester City Council,23UE,Aspire Admin Charges,LC105,Other Minor Income,9900,BAILIFF PAYMENTS 27/06/14,16/07/2014,387569,31,NET,Aspire Sports & Cultural Trust,08135V
Gloucester City Council,23UE,Aspire Admin Charges,LC105,Other Minor Income,9900,BAILIFFS 30/05/14 & 18/04/14,16/07/2014,387568,138.6,NET,Aspire Sports & Cultural Trust,08135V
Gloucester City Council,23UE,Barbican Car Park,RB543,General Repair/Maint Buildings,3000,"Barbican Car Park, Secure Fence",16/07/2014,386612,333.8,NET,Rf Gardiner Limited,12299B
Gloucester City Council,23UE,Bus Station,RB400,General Repair/Maint Buildings,3000,"Remove Vandalised Sign, Bus Station",16/07/2014,386422,24.56,NET,Rf Gardiner Limited,12299B
Gloucester City Council,23UE,Bus Station,RB400,General Repair/Maint Buildings,3000,"Replace Slabs, Bus Station",16/07/2014,386382,274.28,NET,Rf Gardiner Limited,12299B
Gloucester City Council,23UE,Cemeteries,HC300,General Repair/Maint Buildings,3000,"Tredworth Crematorium, Remove Droppings",16/07/2014,386606,540,NET,Rf Gardiner Limited,12299B
Gloucester City Council,23UE,Cemeteries,HC300,Maint Of Grounds - General,3030,"Coney Hill Cremotorium, Sound proof",16/07/2014,386604,397.94,NET,Rf Gardiner Limited,12299B
Gloucester City Council,23UE,City Centre Cctv System,PY275,Contract Payments,0020,CCTV CONSULTANCY,16/07/2014,387517,5625,CAP,Rjh Technical Consultancy Ltd,14236M
Gloucester City Council,23UE,City Museum Catering,LM202,Catering Provisions -Food,5110,Milk,16/07/2014,386963,4.96,NET,Total Produce Gloucester,12645E
Gloucester City Council,23UE,City Museum Catering,LM202,Operational Equipment <5000,5012,"City Museum, Install Lincat Boiler",16/07/2014,386756,118,NET,Rf Gardiner Limited,12299B
Gloucester City Council,23UE,Civil Parking Enforcement,PT741,Pcn Charges,9450,PARKING GO12065448,16/07/2014,387567,25,NET,REDACTED,REDACTED
Gloucester City Council,23UE,Client Revs & Bens Contract,RT240,Bailiffs Fees,5368,VAT ONLY INVOICE,16/07/2014,387500,0,NET,Bristow & Sutor,05450M
Gloucester City Council,23UE,Client Revs & Bens Contract,RT240,Fees For Services Received,5350,VAT ONLY INVOICE,16/07/2014,387498,0,NET,Phoenix Commercial Collections Ltd,13435J
Gloucester City Council,23UE,Contact Centre,RB300,Basic Pay -Admin /Prof Staff,2601,REDACTED,16/07/2014,387509,682,NET,Venn Group Ltd,04339P
Gloucester City Council,23UE,Council Streetcare Team,HI101,General Repair/Maint Buildings,3000,"Armscroft Park, Reinstate pillars",16/07/2014,387195,761,NET,Rf Gardiner Limited,12299B
Gloucester City Council,23UE,Council Streetcare Team,HI101,General Repair/Maint Buildings,3000,INNSWORTH LANE,16/07/2014,387516,586,NET,Greenfields Garden Services Ltd,48130G
Gloucester City Council,23UE,Council Streetcare Team,HI101,General Repair/Maint Buildings,3000,"Westgate Leisure Area, Secure Doors",16/07/2014,386757,32.84,NET,Rf Gardiner Limited,12299B
Gloucester City Council,23UE,Council Streetcare Team,HI101,Maint Of Grounds - General,3030,FENCING WORKS,16/07/2014,387514,1384.7,NET,Greenfields Garden Services Ltd,48130G
Gloucester City Council,23UE,Disabled Facilities Grants,CY013,Disabled Facility Grants,0074,REDACTED,16/07/2014,387484,4753.03,CAP,Davey's Building Maintenance,57010K
Gloucester City Council,23UE,Disabled Facilities Grants,CY013,Disabled Facility Grants,0074,GRANT REF MDF5035,16/07/2014,387564,9934.96,CAP,Mears Home Improvement Ltd,00096G
Gloucester City Council,23UE,Docks Complex - Services,RB100,General Repair/Maint Buildings,3000,"Herbert Warehouse, kitchen faulty light",16/07/2014,386594,239.5,NET,Rf Gardiner Limited,12299B
Gloucester City Council,23UE,Docks Complex - Services,RB100,General Repair/Maint Buildings,3000,"Herbert Warehouse, Repair Toilet",16/07/2014,386609,133.56,NET,Rf Gardiner Limited,12299B
Gloucester City Council,23UE,Docks Complex - Services,RB100,General Repair/Maint Buildings,3000,"Herbert Warehouse, supply lamps",16/07/2014,386601,161.15,NET,Rf Gardiner Limited,12299B
Gloucester City Council,23UE,Docks Complex - Services,RB100,General Repair/Maint Buildings,3000,"North Quay, Install granite set paving",16/07/2014,386597,95.7,NET,Rf Gardiner Limited,12299B
Gloucester City Council,23UE,Docks Complex - Services,RB100,General Repair/Maint Buildings,3000,"North Warehouse, Supply IT box",16/07/2014,386599,1120,NET,Rf Gardiner Limited,12299B
Gloucester City Council,23UE,Docks Complex - Services,RB100,Service Charges,3020,Service Charge 01/07/2014- 30/09/2014,16/07/2014,387235,13028.75,NET,Gloucester Quays Management Ltd,13497K
Gloucester City Council,23UE,Eastgate Viewing Chamber,LY100,Contract Payments,0020,"Eastgate viewing chamber, pump out water",16/07/2014,386600,914.31,CAP,Rf Gardiner Limited,12299B
Gloucester City Council,23UE,Electrical Investigatory Works,RY142,Contract Payments,0020,Domestic Monitoring Contract Jun- Aug 14,16/07/2014,385920,3146.25,CAP,Kingfisher Environmental Services Ltd,04738V
Gloucester City Council,23UE,Folk Museum,LM210,Maint Agreements - Fixed Plant,3011,CALLOUT 01/07/14,16/07/2014,387494,73,NET,Glevum Security Ltd,03249B
Gloucester City Council,23UE,Forest Of Dean Cpe,PT744,Contracted Services,6970,Penalty Charge Notices 2nd quarter 14/15,16/07/2014,387253,73.15,NET,Patrol,09431C
Gloucester City Council,23UE,General Works Fund,RY203,Capital General Repairs & Main,0013,"Herbert Warehouse, replace kitchen tap",16/07/2014,386521,120.05,CAP,Rf Gardiner Limited,12299B
Gloucester City Council,23UE,Homelessness,CH120,Board And Lodging,5515,REDACTED,16/07/2014,387492,533.16,NET,Riverside Group Ltd,03241U
Gloucester City Council,23UE,Homelessness,CH120,Fees For Services Received,5350,REDACTED,16/07/2014,387519,20.5,NET,Gloucester City Health Centre,02093U
Gloucester City Council,23UE,Homelessness,CH120,Removal And Storage Fees,5513,STORAGE COSTS,16/07/2014,387520,450,NET,Advanced Removals & Storage Ltd,57142R
Gloucester City Council,23UE,Homelessness Prevention,CH122,Grants To Voluntary Orgs-Rents,7100,HOMELESS BEDS JUL-SEPT 14,16/07/2014,387522,2379,NET,P3 (People Potential Possibilities),13809N
Gloucester City Council,23UE,Investment Property,RB500,Fire Alarm Maintenance,3053,GUILDHALL,16/07/2014,387489,191.46,NET,Pickerings Europe Ltd*,58816U
Gloucester City Council,23UE,Investment Property,RB500,Fire Alarm Maintenance,3053,GUILDHALL,16/07/2014,387490,153.16,NET,Pickerings Europe Ltd*,58816U
Gloucester City Council,23UE,Investment Property,RB500,General Repair/Maint Buildings,3000,"Attend to lighting fault, City Museum",16/07/2014,386383,78.84,NET,Rf Gardiner Limited,12299B
Gloucester City Council,23UE,Investment Property,RB500,General Repair/Maint Buildings,3000,"Board up window, Taxi Kiosk",16/07/2014,386418,52.64,NET,Rf Gardiner Limited,12299B
Gloucester City Council,23UE,Investment Property,RB500,General Repair/Maint Buildings,3000,"Check tank, Folk Museum",16/07/2014,386419,95.4,NET,Rf Gardiner Limited,12299B
Gloucester City Council,23UE,Investment Property,RB500,General Repair/Maint Buildings,3000,"City Museum, Unblock Toilet",16/07/2014,386610,76.32,NET,Rf Gardiner Limited,12299B
Gloucester City Council,23UE,Investment Property,RB500,General Repair/Maint Buildings,3000,"Coney Hill Crematorium, Unblock Urinal",16/07/2014,386524,38.16,NET,Rf Gardiner Limited,12299B
Gloucester City Council,23UE,Investment Property,RB500,General Repair/Maint Buildings,3000,"Coney Hill Crem, Clear blocked gully",16/07/2014,386529,136.64,NET,Rf Gardiner Limited,12299B
Gloucester City Council,23UE,Investment Property,RB500,General Repair/Maint Buildings,3000,"Coney Hill Crem, re-seal skylight",16/07/2014,386605,32.84,NET,Rf Gardiner Limited,12299B
Gloucester City Council,23UE,Investment Property,RB500,General Repair/Maint Buildings,3000,"Eastgate Market, Remove Debris",16/07/2014,386526,24.56,NET,Rf Gardiner Limited,12299B
Gloucester City Council,23UE,Investment Property,RB500,General Repair/Maint Buildings,3000,"Eastgate Market, Replace Tile",16/07/2014,387196,32.84,NET,Rf Gardiner Limited,12299B
Gloucester City Council,23UE,Investment Property,RB500,General Repair/Maint Buildings,3000,"Fault on light fitting, Eastgate Market",16/07/2014,386417,228.54,NET,Rf Gardiner Limited,12299B
Gloucester City Council,23UE,Investment Property,RB500,General Repair/Maint Buildings,3000,Fix lighting fault TIC,16/07/2014,386384,78.84,NET,Rf Gardiner Limited,12299B
Gloucester City Council,23UE,Investment Property,RB500,General Repair/Maint Buildings,3000,"Greyfriars, Secure double doors",16/07/2014,386525,90.31,NET,Rf Gardiner Limited,12299B
Gloucester City Council,23UE,Investment Property,RB500,General Repair/Maint Buildings,3000,Install Guttering City Museum,16/07/2014,386423,82.52,NET,Rf Gardiner Limited,12299B
Gloucester City Council,23UE,Investment Property,RB500,General Repair/Maint Buildings,3000,"Kings Walk Car Park, Torch",16/07/2014,386964,43.84,NET,Rf Gardiner Limited,12299B
Gloucester City Council,23UE,Investment Property,RB500,General Repair/Maint Buildings,3000,"Repair Toilet, Guildhall",16/07/2014,386416,53.01,NET,Rf Gardiner Limited,12299B
Gloucester City Council,23UE,Investment Property,RB500,General Repair/Maint Buildings,3000,"Robinswood Hill, Replace Manhole Cover",16/07/2014,386611,97.86,NET,Rf Gardiner Limited,12299B
Gloucester City Council,23UE,Investment Property,RB500,General Repair/Maint Buildings,3000,"Tredworth Cemetery, Replace shower",16/07/2014,386596,245.57,NET,Rf Gardiner Limited,12299B
Gloucester City Council,23UE,Investment Property,RB500,General Repair/Maint Buildings,3000,"Unblock drainpipes, greyfriars bowling c",16/07/2014,386374,32.84,NET,Rf Gardiner Limited,12299B
Gloucester City Council,23UE,Investment Property,RB500,General Repair/Maint Buildings,3000,"Westgate Laundry, temporary sockets",16/07/2014,386595,152.19,NET,Rf Gardiner Limited,12299B
Gloucester City Council,23UE,Kings Quarter,RY146,Contract Payments,0020,"Asbestos Survey, Taxi Kiosk",16/07/2014,386542,49.34,CAP,Rf Gardiner Limited,12299B
Gloucester City Council,23UE,Kings Sq Paving Emerg Works,RY161,Contract Payments,0020,"Kings Square, fix slabs",16/07/2014,386980,66.61,CAP,Rf Gardiner Limited,12299B
Gloucester City Council,23UE,Kings Sq Paving Emerg Works,RY161,Contract Payments,0020,"Kings Square, Provide Telehandler",16/07/2014,386545,300,CAP,Rf Gardiner Limited,12299B
Gloucester City Council,23UE,Kings Sq Paving Emerg Works,RY161,Contract Payments,0020,Kings Square Re-lay slabs and brick,16/07/2014,386981,78.72,CAP,Rf Gardiner Limited,12299B
Gloucester City Council,23UE,Legal Services,RS200,Basic Pay -Admin /Prof Staff,2601,REDACTED,16/07/2014,387241,627.12,NET,Sellick Partnership Group Ltd,11057C
Gloucester City Council,23UE,Legal Services,RS200,Fees For Services Received,5350,PROF CHARGES,16/07/2014,387495,54,NET,Bevan Brittan,06630Y
Gloucester City Council,23UE,Marketing Gloucester Charges,RC433,Contracted Services,6970,GRANT 1ST QTR,16/07/2014,387525,43662.5,NET,Marketing Gloucester Ltd,08925E
Gloucester City Council,23UE,Marketing Gloucester Charges,RC433,Contracted Services,6970,GRANT 2ND QTR,16/07/2014,387523,43662.5,NET,Marketing Gloucester Ltd,08925E
Gloucester City Council,23UE,Northwarehouse,RB150,General Repair/Maint Buildings,3000,"North Warehouse, Repair pipe",16/07/2014,386965,43.92,NET,Rf Gardiner Limited,12299B
Gloucester City Council,23UE,Off Street Car Parks,PP110,Contracted Services,6970,Penalty Charge Notices 2nd quarter 14/15,16/07/2014,387254,1165.45,NET,Patrol,09431C
Gloucester City Council,23UE,Off Street Car Parks,PP110,General Repair/Maint Buildings,3000,"Board over fence, Longsmith Street Car P",16/07/2014,386381,173.15,NET,Rf Gardiner Limited,12299B
Gloucester City Council,23UE,Off Street Car Parks,PP110,General Repair/Maint Buildings,3000,"Kings Walk Car Park, Repair lights",16/07/2014,386523,572.66,NET,Rf Gardiner Limited,12299B
Gloucester City Council,23UE,Off Street Car Parks,PP110,General Repair/Maint Buildings,3000,"Kings Walk Car Park, Replace Padlock",16/07/2014,386527,49.34,NET,Rf Gardiner Limited,12299B
Gloucester City Council,23UE,Off Street Car Parks,PP110,General Repair/Maint Buildings,3000,"Longsmith Car Park, replace door & light",16/07/2014,386528,2182.52,NET,Rf Gardiner Limited,12299B
Gloucester City Council,23UE,Off Street Car Parks,PP110,General Repair/Maint Buildings,3000,"Longsmith Car Park, reverse credit note",16/07/2014,387320,1993.57,NET,Rf Gardiner Limited,12299B
Gloucester City Council,23UE,Off Street Car Parks,PP110,General Repair/Maint Buildings,3000,Repair Asphalt Kings Walk Car Park,16/07/2014,386380,84.74,NET,Rf Gardiner Limited,12299B
Gloucester City Council,23UE,Off Street Car Parks,PP110,General Repair/Maint Buildings,3000,Repair Lights Longsmith Street Car Park,16/07/2014,386375,1993.52,NET,Rf Gardiner Limited,12299B
Gloucester City Council,23UE,Off Street Car Parks,PP110,General Repair/Maint Buildings,3000,Repairs to door. Longsmith Street,16/07/2014,386420,32.84,NET,Rf Gardiner Limited,12299B
Gloucester City Council,23UE,Off Street Car Parks,PP110,General Repair/Maint Buildings,3000,Repair to lock Longsmith Street Car Park,16/07/2014,386379,65.68,NET,Rf Gardiner Limited,12299B
Gloucester City Council,23UE,Off Street Car Parks,PP110,General Repair/Maint Buildings,3000,Secure Doors Kings Walk Car Park,16/07/2014,386391,115,NET,Rf Gardiner Limited,12299B
Gloucester City Council,23UE,Off Street Car Parks,PP110,Pcn Charges,9450,PARKING GO52008541,16/07/2014,387566,25,NET,REDACTED,REDACTED
Gloucester City Council,23UE,Off Street Car Parks,PP110,Pcn Charges,9450,PARKING GO52044501,16/07/2014,387565,25,NET,REDACTED,REDACTED
Gloucester City Council,23UE,Rehousing,CH111,Publications,5060,BOOKS,16/07/2014,387487,118.5,NET,Marston Book Services,56453D
Gloucester City Council,23UE,Shopmobility,PE200,Office Equipment <5000,5010,SHOPMOBILITY,16/07/2014,387504,150,NET,Severnside Security Ltd,14661M
Gloucester City Council,23UE,Stationery Services,RS150,Stationery,5302,STATIONERY,16/07/2014,387510,144.16,NET,Lyreco Uk Ltd,11746G
Gloucester City Council,23UE,Stationery Services,RS150,Stationery,5302,STATIONERY,16/07/2014,387511,63.72,NET,Lyreco Uk Ltd,11746G
Gloucester City Council,23UE,Stationery Services,RS150,Stationery,5302,STATIONERY,16/07/2014,387512,38.95,NET,Lyreco Uk Ltd,11746G
Gloucester City Council,23UE,Stationery Services,RS150,Stationery,5302,STATIONERY,16/07/2014,387513,65,NET,Lyreco Uk Ltd,11746G
Gloucester City Council,23UE,Summer Festival,LT300,Fees For Services Received,5350,20 Stalls 13/07/2014,16/07/2014,387314,400,NET,Cotswold Markets Ltd,14398D
Gloucester City Council,23UE,Swrda Asset Transfer,RY184,Contract Payments,0020,"Barbican Car Park, Clear site of debris",16/07/2014,386522,1057.55,CAP,Rf Gardiner Limited,12299B
Gloucester City Council,23UE,Swrda Asset Transfer,RY184,Contract Payments,0020,"Barbican Car Park, Cut down vegetation",16/07/2014,386544,1848.32,CAP,Rf Gardiner Limited,12299B
Gloucester City Council,23UE,Swrda Asset Transfer,RY184,Contract Payments,0020,"Replace Padlock, Barbican Car Park",16/07/2014,386421,49.34,CAP,Rf Gardiner Limited,12299B
Gloucester City Council,23UE,The Fleece,RB530,General Repair/Maint Buildings,3000,"11A Westgate Street, Refix Door",16/07/2014,386543,52.82,NET,Rf Gardiner Limited,12299B
Gloucester City Council,23UE,The Fleece,RB530,General Repair/Maint Buildings,3000,"Bull Lane, Repair Entrance door",16/07/2014,386602,32.84,NET,Rf Gardiner Limited,12299B
Gloucester City Council,23UE,The Fleece,RB530,General Repair/Maint Buildings,3000,"Fleece Hotel, Secure after break in",16/07/2014,386608,238.44,NET,Rf Gardiner Limited,12299B
Gloucester City Council,23UE,All Main Buildings Voltage Mas,RY180,Capital General Repairs & Main,0013,"Lady Bellgate Street, Dug Soil",17/07/2014,387665,6210,CAP,Jrg Transport,12301T
Gloucester City Council,23UE,Business Support,PT250,Routine R And M - Vehicles,4011,Replaced Broken Window,17/07/2014,387572,108.1,NET,Blade Motor Company,13671U
Gloucester City Council,23UE,Cems/Crems Admin,HC100,Security Services Fees,5351,Cash Processed June 2014,17/07/2014,387658,13.73,NET,G4s Cash Solutions (Uk) Ltd,04290V
Gloucester City Council,23UE,City Mus New Heritage Ctre Hlf,LY093,Contract Payments,0020,New Gloucester Folk Museum,17/07/2014,387236,22119.28,CAP,Markey Builders Ltd,29519RV
Gloucester City Council,23UE,Client Revs & Bens Contract,RT240,Bailiffs Fees,5368,VAT on fees collected,17/07/2014,387593,0,NET,Phoenix Commercial Collections Ltd,13435J
Gloucester City Council,23UE,Client Revs & Bens Contract,RT240,Security Services Fees,5351,Cash Processed June 2014,17/07/2014,387658,3.43,NET,G4s Cash Solutions (Uk) Ltd,04290V
Gloucester City Council,23UE,Contact Centre,RB300,Basic Pay -Admin /Prof Staff,2601,STAFF W/E 06/07/14,17/07/2014,387530,296.38,NET,One To One Recruitment,04752H
Gloucester City Council,23UE,Council Streetcare Team,HI101,Window Cleaning,3610,WINDOW CLEANING,17/07/2014,387518,130,NET,Poles Apart Window Cleaning,11636R
Gloucester City Council,23UE,Crematorium,HC200,Cleaning Materials,3600,SANITARY UNITS,17/07/2014,387491,16.78,NET,Minster Cleaning Services,02158R
Gloucester City Council,23UE,Crematorium,HC200,Fees For Services Received,5350,Boutonierre Plaque,17/07/2014,387586,54.75,NET,Treasured Memories Limited,11058H
Gloucester City Council,23UE,Docks Complex - Services,RB100,Cleaning Materials,3600,CLEANING GOODS,17/07/2014,387521,30.7,NET,Core Hygiene Ltd,03885P
Gloucester City Council,23UE,Docks Complex - Services,RB100,Other Minor Supplies Services,5590,Cleaned all external windows,17/07/2014,387637,650,NET,Sparklin Facilities Ltd,09142N
Gloucester City Council,23UE,Docks Complex - Services,RB100,Other Minor Supplies Services,5590,"External Window Cleaning, North Building",17/07/2014,387638,225,NET,Sparklin Facilities Ltd,09142N
Gloucester City Council,23UE,Electrical Investigatory Works,RY142,Contract Payments,0020,"Environmental Clean, Barbican House",17/07/2014,387580,4150,CAP,Hereford Asbestos Services Ltd,14938R
Gloucester City Council,23UE,Gloucester Guildhall,LA100,Fees For Services Received,5350,Install of DCM  ads download,17/07/2014,387641,300,NET,Cinema Projection Services,14502K
Gloucester City Council,23UE,REDACTED,REDACTED,REDACTED,REDACTED,REDACTED,17/07/2014,REDACTED,80,NET,REDACTED,REDACTED
Gloucester City Council,23UE,REDACTED,REDACTED,REDACTED,REDACTED,REDACTED,17/07/2014,REDACTED,100,NET,REDACTED,REDACTED
Gloucester City Council,23UE,REDACTED,REDACTED,REDACTED,REDACTED,REDACTED,17/07/2014,REDACTED,550,NET,REDACTED,REDACTED
Gloucester City Council,23UE,Guildhall Events,LA200,Fees For Services Received,5350,Distribution of Gloucester- Guildhall,17/07/2014,387636,460,NET,Glide Media,58829J
Gloucester City Council,23UE,Guildhall Events,LA200,Fees For Services Received,5350,Months News,17/07/2014,387644,26.45,NET,W H Smith Ltd,40860M
Gloucester City Council,23UE,Guildhall Events,LA200,Fees For Services Received,5350,Months News,17/07/2014,387645,26.4,NET,W H Smith Ltd,40860M
Gloucester City Council,23UE,Guildhall Events,LA200,Fees For Services Received,5350,Months News March,17/07/2014,387646,27.8,NET,W H Smith Ltd,40860M
Gloucester City Council,23UE,REDACTED,REDACTED,REDACTED,REDACTED,REDACTED,17/07/2014,REDACTED,100,NET,REDACTED,REDACTED
Gloucester City Council,23UE,REDACTED,REDACTED,REDACTED,REDACTED,REDACTED,17/07/2014,REDACTED,110,NET,REDACTED,REDACTED
Gloucester City Council,23UE,REDACTED,REDACTED,REDACTED,REDACTED,REDACTED,17/07/2014,REDACTED,570,NET,REDACTED,REDACTED
Gloucester City Council,23UE,Hempsted Market/Car Boot,HM234,Security Services Fees,5351,"Security Staff, Hempsted Meadow",17/07/2014,387659,1670.4,NET,Nsgl Ltd,12539E
Gloucester City Council,23UE,Investment Property,RB500,Fire Alarm Maintenance,3053,"Guildhall, Engineer 05/06/2014",17/07/2014,387663,76.58,NET,Pickerings Europe Ltd*,58816U
Gloucester City Council,23UE,Investment Property,RB500,General Repair/Maint Buildings,3000,Attend to Tudor Cottage,17/07/2014,387587,94.95,NET,Severnside Security Ltd,14661M
Gloucester City Council,23UE,Legal Services,RS200,Basic Pay -Admin /Prof Staff,2601,REDACTED,17/07/2014,387579,735,NET,Michael Page International Recruitment Ltd,06601P
Gloucester City Council,23UE,Legal Services,RS200,Basic Pay - Temporary Staff,2751,REDACTED,17/07/2014,387508,1004.92,NET,Venn Group Ltd,04339P
Gloucester City Council,23UE,Legal Services,RS200,Basic Pay - Temporary Staff,2751,REDACTED,17/07/2014,387642,800,NET,Badenoch & Clark,01536P
Gloucester City Council,23UE,Printing,RP103,Printing,5300,Posters,17/07/2014,387237,75,NET,Service Point Uk Ltd*,58885Y
Gloucester City Council,23UE,Printing,RP103,Printing,5300,PRINTING,17/07/2014,380369,18.5,NET,Service Point Uk Ltd*,58885Y
Gloucester City Council,23UE,Senior Management Restructurin,RO200,Pension Contribs Incl Backf,2901,Pension Scheme,17/07/2014,387584,20278.77,NET,Gloucestershire County Council,10614L
Gloucester City Council,23UE,Summer Festival,LT300,Fees For Services Received,5350,Services in June 14,17/07/2014,387651,427.4,NET,Event Fire & Rescue Services,13381G
Gloucester City Council,23UE,Allotments,HI104,Water Supply,3400,ACCT 7890105225,18/07/2014,387381,105.77,NET,Severn Trent Water,01823H
Gloucester City Council,23UE,Aspire Admin Charges,LC105,Other Minor Income,9900,BAILIFF PAYMENTS 04/07/14,18/07/2014,387713,125.2,NET,Aspire Sports & Cultural Trust,08135V
Gloucester City Council,23UE,Blackfriars,LA609,Maintenance Of Equipment,5030,"Tablemount, Sockets etc",18/07/2014,387590,90.25,NET,Cpc,52980M
Gloucester City Council,23UE,Blackfriars,LA609,Operational Equipment <5000,5012,Cable Cover,18/07/2014,387589,37.9,NET,Cpc,52980M
Gloucester City Council,23UE,Business Support,PT250,Fuel,4012,Fuel,18/07/2014,387654,256.54,NET,Allstar Business Solutions Ltd (Arval),06594A
Gloucester City Council,23UE,Bus Station,RB400,Water Supply,3400,ACCT 7890105225,18/07/2014,387381,163.17,NET,Severn Trent Water,01823H
Gloucester City Council,23UE,Council Streetcare Team,HI101,Water Supply,3400,ACCT 7890105225,18/07/2014,387381,962.83,NET,Severn Trent Water,01823H
Gloucester City Council,23UE,Countryside Unit,LP201,Water Supply,3400,ACCT 7890105225,18/07/2014,387381,13.75,NET,Severn Trent Water,01823H
Gloucester City Council,23UE,Crematorium,HC200,Cleaning Materials,3600,Cleaning Materials,18/07/2014,387596,47.61,NET,Core Hygiene Ltd,03885P
Gloucester City Council,23UE,Crematorium,HC200,Water Supply,3400,ACCT 7890105225,18/07/2014,387381,36.35,NET,Severn Trent Water,01823H
Gloucester City Council,23UE,Docks Complex - Telephones,RB120,Telephones And Fax,5410,Phone Charges,18/07/2014,384540,80,NET,Virgin Media Payments Ltd,09376J
Gloucester City Council,23UE,Enhanced Lighting Schemes,PY118,Contract Payments,0020,EASTGATE VIEWING CHAMBER,18/07/2014,387715,43.4,CAP,Scs Installations Ltd,10383G
Gloucester City Council,23UE,Gloucester Guildhall,LA100,Maintenance Of Equipment,5030,"Tablemount, Sockets etc",18/07/2014,387590,91.31,NET,Cpc,52980M
Gloucester City Council,23UE,Gloucester Guildhall,LA100,Overtime -Duty Managers,1503,"Tablemount, Sockets etc",18/07/2014,387590,16.5,NET,Cpc,52980M
Gloucester City Council,23UE,REDACTED,REDACTED,REDACTED,REDACTED,REDACTED,18/07/2014,REDACTED,207.83,NET,REDACTED,REDACTED
Gloucester City Council,23UE,Homelessness,CH120,Rent In Advance,5516,REDACTED,18/07/2014,387720,477.36,NET,Martin & Co,14610F
Gloucester City Council,23UE,Homelessness Prevention,CH122,Fees For Services Received,5350,REDACTED,18/07/2014,387721,582.68,NET,REDACTED,REDACTED
Gloucester City Council,23UE,Homelessness Prevention,CH122,Fees For Services Received,5350,REDACTED,18/07/2014,387720,600,NET,Martin & Co,14610F
Gloucester City Council,23UE,Investment Property,RB500,Water Supply,3400,ACCT 7890105225,18/07/2014,387381,290.71,NET,Severn Trent Water,01823H
Gloucester City Council,23UE,Mandatory Rent Allowances,DD100,Rent Allowances - Normal Payts,7200,REDACTED,18/07/2014,387721,600,NET,REDACTED,REDACTED
Gloucester City Council,23UE,Off Street Car Parks,PP110,Water Supply,3400,ACCT 7890105225,18/07/2014,387381,1634.55,NET,Severn Trent Water,01823H
Gloucester City Council,23UE,Pollution Control,HE300,Fees For Services Received,5350,Barton St 2013 Air Quality Ratification,18/07/2014,387719,495,NET,Air Quality Data Management,11734P
Gloucester City Council,23UE,Public Conveniences (Client),HI400,Water Supply,3400,ACCT 7890105225,18/07/2014,387381,84.75,NET,Severn Trent Water,01823H
Gloucester City Council,23UE,Rehousing,CH111,Basic Pay - Temporary Staff,2751,REDACTED,18/07/2014,387662,638,NET,Building Recruitment Company Ltd,55385E
Gloucester City Council,23UE,Utilities,PT502,Electricity Supply,3110,16 COMMERCIAL RD,18/07/2014,387380,11.83,NET,Southern Electric,05714A
Gloucester City Council,23UE,Utilities,PT502,Electricity Supply,3110,UTILITIES TO JULY 2014,18/07/2014,387718,37924.22,NET,West Mercia Energy,11669Z
Gloucester City Council,23UE,Business Transformation & Tech,RT700,Computer Network Maintenance,5443,Additional Card Reader,21/07/2014,387004,2529.39,NET,Scs Installations Ltd,10383G
Gloucester City Council,23UE,Celebratory Lights,LT302,Christmas Lights,5024,"Clear old Cables, Catenary Westgate St",21/07/2014,387574,80,NET,REDACTED,REDACTED
Gloucester City Council,23UE,City Museum And Art Gallery,LM200,Publications For Sale,5064,Loom Bands Activity Pack,21/07/2014,387652,201.6,NET,Ashwood & Company,51123D
Gloucester City Council,23UE,City Museum Catering,LM202,Catering Provisions -Food,5110,Food,21/07/2014,387809,4.96,NET,Total Produce Gloucester,12645E
Gloucester City Council,23UE,City Museum Catering,LM202,Catering Provisions -Food,5110,Food,21/07/2014,387810,4.96,NET,Total Produce Gloucester,12645E
Gloucester City Council,23UE,City Museum Catering,LM202,Catering Provisions -Food,5110,Food,21/07/2014,387811,7.44,NET,Total Produce Gloucester,12645E
Gloucester City Council,23UE,City Museum Catering,LM202,Catering Provisions -Food,5110,Food,21/07/2014,387812,6.2,NET,Total Produce Gloucester,12645E
Gloucester City Council,23UE,City Museum Catering,LM202,Catering Provisions -Food,5110,Food,21/07/2014,387813,7.44,NET,Total Produce Gloucester,12645E
Gloucester City Council,23UE,City Museum Catering,LM202,Catering Provisions -Food,5110,Food,21/07/2014,387814,4.96,NET,Total Produce Gloucester,12645E
Gloucester City Council,23UE,City Museum Catering,LM202,Catering Provisions -Food,5110,Food,21/07/2014,387815,7.44,NET,Total Produce Gloucester,12645E
Gloucester City Council,23UE,City Museum Catering,LM202,Catering Provisions -Food,5110,Food,21/07/2014,387816,4.96,NET,Total Produce Gloucester,12645E
Gloucester City Council,23UE,City Museum Catering,LM202,Catering Provisions -Food,5110,Food,21/07/2014,387817,7.44,NET,Total Produce Gloucester,12645E
Gloucester City Council,23UE,City Museum Catering,LM202,Catering Provisions -Food,5110,Food,21/07/2014,387829,80.46,NET,Woodward Foodservice,10714F
Gloucester City Council,23UE,City Museum Catering,LM202,Catering Provisions -Food,5110,Food,21/07/2014,387830,119,NET,Woodward Foodservice,10714F
Gloucester City Council,23UE,Civica It Contract,RT270,Contracted Services,6970,Pension Excess Claim May & June 14,21/07/2014,387774,4738.58,NET,Civica Uk Ltd,10841X
Gloucester City Council,23UE,Development Management,PT200,Advertising And Publicity,5702,Advertisement 11/07/2014,21/07/2014,387776,281.6,NET,Local World Ltd,08556P
Gloucester City Council,23UE,Development Management,PT200,Advertising And Publicity,5702,Advertisements 25/06/14,21/07/2014,386829,175.3,NET,Local World Ltd,08556P
Gloucester City Council,23UE,Development Management,PT200,Advertising And Publicity,5702,Advertisements 26/06/2014,21/07/2014,386831,116.86,NET,Local World Ltd,08556P
Gloucester City Council,23UE,Development Management,PT200,Contents Insurance,5700,Advertisements 26/06/2014,21/07/2014,386830,87.65,NET,Local World Ltd,08556P
Gloucester City Council,23UE,Docks Complex - Catering Servs,RB110,Catering Provisions -Food,5110,Food w/e 06/07/2014,21/07/2014,387258,89.31,NET,Janes Pantry,24500W
Gloucester City Council,23UE,Docks Complex - Services,RB100,Fire Alarm Maintenance,3053,"Engineer, fire system work 12/06/2014",21/07/2014,385938,510,NET,Adt Fire & Security Plc,54086D
Gloucester City Council,23UE,Docks Complex - Telephones,RB120,Telephones And Fax,5410,Phone Charges June 14,21/07/2014,386271,243,NET,Virgin Media Business,01869B
Gloucester City Council,23UE,Financial Services,RT200,Fees For Services Received,5350,pension excess claim June 14,21/07/2014,387594,13930.1,NET,Civica Uk Ltd,10841X
Gloucester City Council,23UE,Financial Services,RT200,Fees For Services Received,5350,pension excess claim May 2014,21/07/2014,387595,15418.06,NET,Civica Uk Ltd,10841X
Gloucester City Council,23UE,Folk Museum,LM210,Publications For Sale,5064,Loom Bands Activity Pack,21/07/2014,387652,201.6,NET,Ashwood & Company,51123D
Gloucester City Council,23UE,Guildhall Bar And Caf�,LA210,Catering Provisions -Food,5110,Food,21/07/2014,387819,4.96,NET,Total Produce Gloucester,12645E
Gloucester City Council,23UE,Guildhall Bar And Caf�,LA210,Catering Provisions -Food,5110,Food,21/07/2014,387820,4.96,NET,Total Produce Gloucester,12645E
Gloucester City Council,23UE,Guildhall Bar And Caf�,LA210,Catering Provisions -Food,5110,Food,21/07/2014,387821,4.96,NET,Total Produce Gloucester,12645E
Gloucester City Council,23UE,Guildhall Bar And Caf�,LA210,Catering Provisions -Food,5110,Food,21/07/2014,387822,4.96,NET,Total Produce Gloucester,12645E
Gloucester City Council,23UE,Guildhall Bar And Caf�,LA210,Catering Provisions -Food,5110,Food,21/07/2014,387823,4.96,NET,Total Produce Gloucester,12645E
Gloucester City Council,23UE,Guildhall Bar And Caf�,LA210,Catering Provisions -Food,5110,Food,21/07/2014,387824,4.96,NET,Total Produce Gloucester,12645E
Gloucester City Council,23UE,Guildhall Bar And Caf�,LA210,Catering Provisions -Food,5110,Food,21/07/2014,387825,4.96,NET,Total Produce Gloucester,12645E
Gloucester City Council,23UE,Guildhall Bar And Caf�,LA210,Catering Provisions -Food,5110,Food,21/07/2014,387826,4.96,NET,Total Produce Gloucester,12645E
Gloucester City Council,23UE,Guildhall Bar And Caf�,LA210,Catering Provisions -Food,5110,Food,21/07/2014,387827,4.96,NET,Total Produce Gloucester,12645E
Gloucester City Council,23UE,Guildhall Bar And Caf�,LA210,Catering Provisions -Food,5110,Food,21/07/2014,387828,4.96,NET,Total Produce Gloucester,12645E
Gloucester City Council,23UE,REDACTED,REDACTED,REDACTED,REDACTED,REDACTED,21/07/2014,REDACTED,1000,NET,REDACTED,REDACTED
Gloucester City Council,23UE,REDACTED,REDACTED,REDACTED,REDACTED,REDACTED,21/07/2014,REDACTED,75,NET,REDACTED,REDACTED
Gloucester City Council,23UE,REDACTED,REDACTED,REDACTED,REDACTED,REDACTED,21/07/2014,REDACTED,150,NET,REDACTED,REDACTED
Gloucester City Council,23UE,Investment Property,RB500,Maint Of Grounds - General,3030,Jet Wash Shop Mobility Canopy,21/07/2014,387576,325,NET,REDACTED,REDACTED
Gloucester City Council,23UE,Legal Services,RS200,Basic Pay - Temporary Staff,2751,REDACTED,21/07/2014,387481,487.29,NET,Premiere Employment Ltd,55468Z
Gloucester City Council,23UE,Licences,HE510,Vocational Training,2970,Investigators PACE course MAR14,21/07/2014,387854,225,NET,The Institute Of Licensing (Events) Ltd,10855K
Gloucester City Council,23UE,Retail Market - Landlord,HM300,Sewerage And Environ Charges,3402,Gloucester Market 07/07/2014,21/07/2014,387792,180,NET,Eezeeflow Drain Services,11587C
Gloucester City Council,23UE,Summer Festival,LT300,Fees For Services Received,5350,Double Stack Staircase,21/07/2014,387791,787,NET,Konstructa Hire Ltd,12989S
Gloucester City Council,23UE,REDACTED,REDACTED,REDACTED,REDACTED,REDACTED,21/07/2014,REDACTED,150,NET,REDACTED,REDACTED
Gloucester City Council,23UE,Tourism Marketing,LT100,Uniforms,5201,Polo Shirts with Printing,21/07/2014,387591,213.33,NET,Hudson & Co,49730P
Gloucester City Council,23UE,Utilities,PT502,Electricity Supply,3110,"UNIT 1,1-6 NORTHGATE ST",21/07/2014,387716,841.55,NET,Southern Electric,05714A
Gloucester City Council,23UE,Utilities,PT502,Electricity Supply,3110,UNIT 5 NORTHGATE ST,21/07/2014,387714,14.41,NET,Southern Electric,05714A
Gloucester City Council,23UE,Utilities,PT502,Electricity Supply,3110,UNIT 6 1-6 NORTHGATE ST,21/07/2014,387717,841.55,NET,Southern Electric,05714A
Gloucester City Council,23UE,REDACTED,REDACTED,REDACTED,REDACTED,REDACTED,21/07/2014,REDACTED,246.5,NET,REDACTED,REDACTED
Gloucester City Council,23UE,Asset Management,RS300,Basic Pay - Temporary Staff,2751,REDACTED,22/07/2014,387655,2400,NET,Unity Recruitment,14857S
Gloucester City Council,23UE,Business Grants,GY007,Contract Payments,0020,Photos,22/07/2014,387745,148.8,CAP,7 Bamboos Rugby Ltd,14375S
Gloucester City Council,23UE,Business Support,PT250,Fuel,4012,Fuel,22/07/2014,387807,315.1,NET,Allstar Business Solutions Ltd (Arval),06594A
Gloucester City Council,23UE,Business Transformation & Tech,RT700,Computer Software Maintenance,5427,MEA Licence renewal,22/07/2014,387178,90003.38,NET,Civica Uk Ltd,10841X
Gloucester City Council,23UE,City Museum And Art Gallery,LM200,Publications For Sale,5064,"Artwork Sales, Cafe Nerva",22/07/2014,387881,14.45,NET,REDACTED,REDACTED
Gloucester City Council,23UE,City Museum And Art Gallery,LM200,Publications For Sale,5064,"Artwork Sales, Cafe Nerva",22/07/2014,387882,49.5,NET,REDACTED,REDACTED
Gloucester City Council,23UE,City Museum And Art Gallery,LM200,Publications For Sale,5064,"Artwork Sales, Cafe Nerva",22/07/2014,387883,95,NET,REDACTED,REDACTED
Gloucester City Council,23UE,City Museum And Art Gallery,LM200,Publications For Sale,5064,Childrens Items,22/07/2014,387171,57.6,NET,House Of Marbles,04546G
Gloucester City Council,23UE,City Museum And Art Gallery,LM200,Sale Of Goods And Services,9230,"Artwork Sales, Cafe Nerva",22/07/2014,387882,-10.31,NET,REDACTED,REDACTED
Gloucester City Council,23UE,City Museum And Art Gallery,LM200,Sale Of Goods And Services,9230,"Artwork Sales, Cafe Nerva",22/07/2014,387883,-19.8,NET,REDACTED,REDACTED
Gloucester City Council,23UE,City Museum Catering,LM202,Other Catering Provisions,5112,Espresso Machine Rental June 14,22/07/2014,387755,135,NET,La Spaziale Uk Ltd,11823P
Gloucester City Council,23UE,Civica Contract Revs & Bens,RT250,Contracted Services,6970,Pension Excess reclaim May & June 2014,22/07/2014,387771,24609.58,NET,Civica Uk Ltd,10841X
Gloucester City Council,23UE,Contact Centre,RB300,Basic Pay -Admin /Prof Staff,2601,REDACTED,22/07/2014,387801,627,NET,Cps Anystaff Recruitment Ltd,13945D
Gloucester City Council,23UE,Contact Centre,RB300,Basic Pay -Admin /Prof Staff,2601,REDACTED,22/07/2014,387806,803,NET,Cps Anystaff Recruitment Ltd,13945D
Gloucester City Council,23UE,Contact Centre,RB300,Basic Pay -Admin /Prof Staff,2601,REDACTED,22/07/2014,387656,814,NET,Cps Anystaff Recruitment Ltd,13945D
Gloucester City Council,23UE,Contact Centre,RB300,Basic Pay -Admin /Prof Staff,2601,REDACTED,22/07/2014,387804,814,NET,Cps Anystaff Recruitment Ltd,13945D
Gloucester City Council,23UE,Contact Centre,RB300,Basic Pay -Admin /Prof Staff,2601,REDACTED,22/07/2014,387803,814,NET,Cps Anystaff Recruitment Ltd,13945D
Gloucester City Council,23UE,Contact Centre,RB300,Basic Pay -Admin /Prof Staff,2601,REDACTED,22/07/2014,387805,814,NET,Cps Anystaff Recruitment Ltd,13945D
Gloucester City Council,23UE,Contact Centre,RB300,Uniforms,5201,Clothing,22/07/2014,387751,27.9,NET,Meltemi Company Clothing Limited,54572N
Gloucester City Council,23UE,Countryside Unit,LP201,Livestock Foodstuff,5841,Bird Food,22/07/2014,387762,13.99,NET,Countrywide Farmers*,55687J
Gloucester City Council,23UE,Countryside Unit,LP201,Maint Of Grounds - General,3030,Bird Food,22/07/2014,387762,14.99,NET,Countrywide Farmers*,55687J
Gloucester City Council,23UE,Electrical Investigatory Works,RY142,Contract Payments,0020,Dry Riser Inspection 04/07/2014,22/07/2014,387777,45,CAP,A & E Fire Equipment Limited,54289L
Gloucester City Council,23UE,Electrical Investigatory Works,RY142,Contract Payments,0020,Fire Extinguisher Inspections 19/06/14,22/07/2014,387015,193.8,CAP,A & E Fire Equipment Limited,54289L
Gloucester City Council,23UE,Electrical Investigatory Works,RY142,Contract Payments,0020,Inspections 04/07/2014,22/07/2014,387764,29.37,CAP,A & E Fire Equipment Limited,54289L
Gloucester City Council,23UE,Electrical Investigatory Works,RY142,Contract Payments,0020,Inspections 04/07/2014,22/07/2014,387765,13.5,CAP,A & E Fire Equipment Limited,54289L
Gloucester City Council,23UE,Electrical Investigatory Works,RY142,Contract Payments,0020,Inspections 04/07/2014,22/07/2014,387767,69.81,CAP,A & E Fire Equipment Limited,54289L
Gloucester City Council,23UE,Electrical Investigatory Works,RY142,Contract Payments,0020,Inspections 04/07/2014,22/07/2014,387781,52.8,CAP,A & E Fire Equipment Limited,54289L
Gloucester City Council,23UE,Financial Services,RT200,Publications,5060,Advertisements 08/07/2014,22/07/2014,387573,321.38,NET,Local World Ltd,08556P
Gloucester City Council,23UE,Folk Museum,LM210,Publications For Sale,5064,Childrens Items,22/07/2014,387171,64.45,NET,House Of Marbles,04546G
Gloucester City Council,23UE,Gf Lifelinks,CH180,Contracted Services,6970,June 2014 Management Fee,22/07/2014,386845,5270.83,NET,Gloucester City Homes,05244T
Gloucester City Council,23UE,Guildhall Bar And Caf�,LA210,Catering Provisions -Food,5110,Food,22/07/2014,386573,86.31,NET,Woodward Foodservice,10714F
Gloucester City Council,23UE,Guildhall Bar And Caf�,LA210,Catering Provisions -Food,5110,Food,22/07/2014,387831,72.56,NET,Woodward Foodservice,10714F
Gloucester City Council,23UE,Guildhall Bar And Caf�,LA210,Catering Provisions -Liquor,5111,Gloucester Gold,22/07/2014,387744,114,NET,Gloucester Brewery,13373F
Gloucester City Council,23UE,Guildhall Bar And Caf�,LA210,Catering Provisions -Liquor,5111,Liquor,22/07/2014,387742,21.99,NET,Cellar Supplies Cheltenham Ltd,01563L
Gloucester City Council,23UE,Guildhall Bar And Caf�,LA210,Catering Provisions -Liquor,5111,Liquor,22/07/2014,387743,154.44,NET,Cellar Supplies Cheltenham Ltd,01563L
Gloucester City Council,23UE,Guildhall Bar And Caf�,LA210,Catering Provisions -Liquor,5111,Liquor,22/07/2014,387756,853.67,NET,Cellar Supplies Cheltenham Ltd,01563L
Gloucester City Council,23UE,REDACTED,REDACTED,REDACTED,REDACTED,REDACTED,22/07/2014,REDACTED,100,NET,REDACTED,REDACTED
Gloucester City Council,23UE,Guildhall Events,LA200,Printing,5300,Whats On Booklets,22/07/2014,387754,1330,NET,Paddock Print,03014H
Gloucester City Council,23UE,Herbert Reception Upgrade,RY201,Contract Payments,0020,HKP,22/07/2014,387493,1000,CAP,Rpa,01710Y
Gloucester City Council,23UE,Hmo Licences,HE520,Other Minor Supplies Services,5590,WELLIES,22/07/2014,387502,147.44,NET,Countrywide Farmers*,55687J
Gloucester City Council,23UE,Homelessness,CH120,Board And Lodging,5515,REDACTED,22/07/2014,387759,245,NET,Connolly And Callaghan Ltd,07565Y
Gloucester City Council,23UE,Homelessness,CH120,Board And Lodging,5515,REDACTED,22/07/2014,387760,245,NET,Connolly And Callaghan Ltd,07565Y
Gloucester City Council,23UE,Homelessness,CH120,Fees For Services Received,5350,REDACTED,22/07/2014,387748,20.5,NET,Kingsholm Surgery,11948S
Gloucester City Council,23UE,Homelessness,CH120,Fees For Services Received,5350,REDACTED,22/07/2014,387747,20.5,NET,Gloucester Gp Consortium Company Ltd,11671N
Gloucester City Council,23UE,Homelessness,CH120,Fees For Services Received,5350,REDACTED,22/07/2014,387749,20.5,NET,Gloucester City Health Centre,02093U
Gloucester City Council,23UE,Homelessness,CH120,Rent In Advance,5516,REDACTED,22/07/2014,387884,364.6,NET,REDACTED,REDACTED
Gloucester City Council,23UE,Homelessness Prevention,CH122,Fees For Services Received,5350,REDACTED,22/07/2014,387884,395,NET,REDACTED,REDACTED
Gloucester City Council,23UE,Organisational Health,RC160,Fees For Services Received,5350,OH Services May 2014,22/07/2014,386823,673.41,NET,Industrial Medical & Safety Services Ltd,10668L
Gloucester City Council,23UE,Photocopying,RS130,Photocopying,5320,Prints June - September 14,22/07/2014,387796,33967.8,NET,Danwood Group Limited,09555G
Gloucester City Council,23UE,Postal Services,RS120,Postages,5400,Post 27/06 - 10/07 2014,22/07/2014,387797,1466.89,NET,Royal Mail S.Wales & South West,35830S
Gloucester City Council,23UE,Public Health,HD200,Other Minor Supplies Services,5590,BHF PROJECT 2013/14,22/07/2014,372747,10000,NET,Gloucestershire County Council,18650D
Gloucester City Council,23UE,Public Health,HD200,Other Minor Supplies Services,5590,HEARTY LIVES PROJECT,22/07/2014,374558,4550,NET,University Of Gloucestershire,57991H
Gloucester City Council,23UE,Registration Of Electors,RS400,Fees For Services Received,5350,Hire of Colwell arts centre for election,22/07/2014,387260,310,NET,Gloucestershire County Council,18650D
Gloucester City Council,23UE,Retail Market - Landlord,HM300,Hire Of Equipment,5020,1 Skip hire- paid by bacs in error,22/07/2014,388018,200,NET,D R Skip Hire,04822D
Gloucester City Council,23UE,REDACTED,REDACTED,REDACTED,REDACTED,REDACTED,22/07/2014,REDACTED,200,NET,REDACTED,REDACTED
Gloucester City Council,23UE,Summer Festival,LT300,Fees For Services Received,5350,One Church event in gloucester park,22/07/2014,387770,1100,NET,Ru Electrical Services,10389U
Gloucester City Council,23UE,Summer Festival,LT300,Printing,5300,BANNERS,22/07/2014,387506,1100,NET,Marketing Gloucester Ltd,08925E
Gloucester City Council,23UE,Swrda Property Tfr,RB503,Advertising And Publicity,5702,Punchline 4 page editorial Jun/Jul,22/07/2014,387750,1000,NET,Moose Marketing & Pr,03952A
Gloucester City Council,23UE,Tourism Marketing,LT100,Uniforms,5201,Logos Embroidered,22/07/2014,387592,10,NET,Hudson & Co,49730P
Gloucester City Council,23UE,Allotments,HI104,Fees For Services Received,5350,Clearance of allotments 07/07 & 10/07 14,23/07/2014,387941,240,NET,Tcv T/A The Conservation Volunteers,55897V
Gloucester City Council,23UE,Aspire Admin Charges,LC105,Security Services Fees,5351,Services August 2014,23/07/2014,387980,264.51,NET,G4s Cash Solutions (Uk) Ltd,04290V
Gloucester City Council,23UE,Cctv Revenue Budget,FP501,Security Equipment Serv/Repair,3038,Redcare Vision Quarterly Charge Jul-Oct,23/07/2014,387952,11748.44,NET,Bt Redcare,04692U
Gloucester City Council,23UE,Cems/Crems Admin,HC100,Security Services Fees,5351,Services August 2014,23/07/2014,387980,100.51,NET,G4s Cash Solutions (Uk) Ltd,04290V
Gloucester City Council,23UE,City Museum And Art Gallery,LM200,Cleaning Materials,3600,Cleaning Materials,23/07/2014,384935,14.78,NET,Gpp Hygiene,06080P
Gloucester City Council,23UE,City Museum And Art Gallery,LM200,Exhibits And Collections,5038,Kids party supplies,23/07/2014,387944,55.5,NET,Charlie Crow Party Shop Supplies Ltd,08655L
Gloucester City Council,23UE,City Museum And Art Gallery,LM200,Security Services Fees,5351,Services August 2014,23/07/2014,387980,88.17,NET,G4s Cash Solutions (Uk) Ltd,04290V
Gloucester City Council,23UE,City Museum Catering,LM202,Cleaning Materials,3600,Cleaning Materials,23/07/2014,384935,39.46,NET,Gpp Hygiene,06080P
Gloucester City Council,23UE,Client Revs & Bens Contract,RT240,Bailiffs Fees,5368,VAT on statutory Fees,23/07/2014,387894,0,NET,Bristow & Sutor,05450M
Gloucester City Council,23UE,Client Revs & Bens Contract,RT240,Bailiffs Fees,5368,VAT on statutory fess,23/07/2014,387885,0,NET,Bristow & Sutor,05450M
Gloucester City Council,23UE,Client Revs & Bens Contract,RT240,Court Fees,5358,"Three Warrants, 22/07/2014",23/07/2014,388022,225,NET,Hmcts,05407N
Gloucester City Council,23UE,Client Revs & Bens Contract,RT240,Security Services Fees,5351,Services August 2014,23/07/2014,387980,263.37,NET,G4s Cash Solutions (Uk) Ltd,04290V
Gloucester City Council,23UE,Countryside Unit,LP201,Major R And M - Vehicles,4010,Battery,23/07/2014,387933,55,NET,Imperial Commercials (Gloucester) Ltd,12764V
Gloucester City Council,23UE,Crematorium,HC200,Memorial Plaques,5053,Plaques,23/07/2014,387943,418,NET,Arkell & Hurcombe,59812T
Gloucester City Council,23UE,Electrical Investigatory Works,RY142,Contract Payments,0020,"Engineers,smoke ventilation system 10/07",23/07/2014,387957,1008,CAP,Airvent Systems Limited,51073T
Gloucester City Council,23UE,Financial Services,RT200,Publications,5060,Advertisements 17/07/2014,23/07/2014,387896,262.94,NET,Local World Ltd,08556P
Gloucester City Council,23UE,Flooding And Drainage,HE306,Maint Of Grounds - General,3030,Clearance of Twyver 03/07/2014,23/07/2014,387942,120,NET,Tcv T/A The Conservation Volunteers,55897V
Gloucester City Council,23UE,Folk Museum,LM210,Exhibits And Collections,5038,Kids party supplies,23/07/2014,387944,29.25,NET,Charlie Crow Party Shop Supplies Ltd,08655L
Gloucester City Council,23UE,Folk Museum,LM210,Publications For Sale,5064,GOODS FOR RESALE,23/07/2014,380826,504.14,NET,Rex International,11680M
Gloucester City Council,23UE,Folk Museum,LM210,Security Services Fees,5351,Services August 2014,23/07/2014,387980,88.17,NET,G4s Cash Solutions (Uk) Ltd,04290V
Gloucester City Council,23UE,Folk Museum Catering,LM211,Cleaning Materials,3600,Cleaning Materials,23/07/2014,384935,20.14,NET,Gpp Hygiene,06080P
Gloucester City Council,23UE,Gl1 Emergency Works,RY160,Contract Payments,0020,"Roof Repairs, GL1",23/07/2014,387172,550,CAP,Goddard Consulting Llp,10598G
Gloucester City Council,23UE,Gloucester Guildhall,LA100,Security Services Fees,5351,Services August 2014,23/07/2014,387980,88.17,NET,G4s Cash Solutions (Uk) Ltd,04290V
Gloucester City Council,23UE,Guildhall Cinema,LA202,Advertising And Publicity,5702,Cinema Loyalty Cards,23/07/2014,387905,73,NET,Paddock Print,03014H
Gloucester City Council,23UE,REDACTED,REDACTED,REDACTED,REDACTED,REDACTED,23/07/2014,REDACTED,64.31,NET,REDACTED,REDACTED
Gloucester City Council,23UE,REDACTED,REDACTED,REDACTED,REDACTED,REDACTED,23/07/2014,REDACTED,100,NET,REDACTED,REDACTED
Gloucester City Council,23UE,REDACTED,REDACTED,REDACTED,REDACTED,REDACTED,23/07/2014,REDACTED,88.23,NET,REDACTED,REDACTED
Gloucester City Council,23UE,REDACTED,REDACTED,REDACTED,REDACTED,REDACTED,23/07/2014,REDACTED,900,NET,REDACTED,REDACTED
Gloucester City Council,23UE,REDACTED,REDACTED,REDACTED,REDACTED,REDACTED,23/07/2014,REDACTED,72,NET,REDACTED,REDACTED
Gloucester City Council,23UE,REDACTED,REDACTED,REDACTED,REDACTED,REDACTED,23/07/2014,REDACTED,72,NET,REDACTED,REDACTED
Gloucester City Council,23UE,Homelessness,CH120,Removal And Storage Fees,5513,REDACTED,23/07/2014,387938,180,NET,Advanced Removals & Storage Ltd,57142R
Gloucester City Council,23UE,Homelessness,CH120,Rent In Advance,5516,REDACTED,23/07/2014,388021,364.6,NET,REDACTED,REDACTED
Gloucester City Council,23UE,Homelessness Prevention,CH122,Fees For Services Received,5350,REDACTED,23/07/2014,388021,395,NET,REDACTED,REDACTED
Gloucester City Council,23UE,Legal Services,RS200,Agency Fees,9105,REDACTED,23/07/2014,387920,606.24,NET,Venn Group Ltd,04339P
Gloucester City Council,23UE,Legal Services,RS200,Agency Fees,9105,REDACTED,23/07/2014,387919,1404.96,NET,Venn Group Ltd,04339P
Gloucester City Council,23UE,Legal Services,RS200,Basic Pay - Temporary Staff,2751,REDACTED,23/07/2014,387753,1034.71,NET,Venn Group Ltd,04339P
Gloucester City Council,23UE,Legal Services,RS200,Basic Pay - Temporary Staff,2751,REDACTED,23/07/2014,387918,395.1,NET,Premiere Employment Ltd,55468Z
Gloucester City Council,23UE,Marchants,LT108,Materials For Sale,5080,Ticket Sales  June 14,23/07/2014,387934,4671,NET,Marchants Coaches Ltd,48151Y
Gloucester City Council,23UE,Mortgage Rescue,CH128,Fees For Services Received,5350,REDACTED,23/07/2014,387529,326.4,NET,One To One Recruitment,04752H
Gloucester City Council,23UE,Pollution Control,HE300,Fees For Services Received,5350,NO2 Tube 20% Tea/Water,23/07/2014,387917,111.15,NET,Gradko International Ltd,11063B
Gloucester City Council,23UE,Postal Services,RS120,Postages,5400,1st Class Envelopes,23/07/2014,387915,109,NET,Encore Envelopes Ltd,13782H
Gloucester City Council,23UE,Postal Services,RS120,Postages,5400,1st Class Envelopes,23/07/2014,387930,185.9,NET,Encore Envelopes Ltd,13782H
Gloucester City Council,23UE,Postal Services,RS120,Postages,5400,2nd Class Envelopes,23/07/2014,387916,110.5,NET,Encore Envelopes Ltd,13782H
Gloucester City Council,23UE,Postal Services,RS120,Postages,5400,2nd Class Envelopes,23/07/2014,387931,118.68,NET,Encore Envelopes Ltd,13782H
Gloucester City Council,23UE,Postal Services,RS120,Postages,5400,2nd Class Envelopes,23/07/2014,387932,142.62,NET,Encore Envelopes Ltd,13782H
Gloucester City Council,23UE,Registration Of Electors,RS400,Fees For Services Received,5350,Storage Polling Booths,23/07/2014,387650,235,NET,Armstrong Removals,04632N
Gloucester City Council,23UE,Safer Stronger Communities,FP841,Other Minor Supplies Services,5590,Dick Whittington Country Park,23/07/2014,387887,175,NET,Bennetts Coaches Ltd,03440K
Gloucester City Council,23UE,Stationery Services,RS150,Stationery,5302,Stationary,23/07/2014,387927,5.08,NET,Lyreco Uk Ltd,11746G
Gloucester City Council,23UE,Stationery Services,RS150,Stationery,5302,Stationary,23/07/2014,387928,20.07,NET,Lyreco Uk Ltd,11746G
Gloucester City Council,23UE,Summer Festival,LT300,Advertising And Publicity,5702,Bags and Keyrings,23/07/2014,387953,690.35,NET,4imprint,59494J
Gloucester City Council,23UE,REDACTED,REDACTED,REDACTED,REDACTED,REDACTED,23/07/2014,REDACTED,1850,NET,REDACTED,REDACTED
Gloucester City Council,23UE,REDACTED,REDACTED,REDACTED,REDACTED,REDACTED,23/07/2014,REDACTED,200,NET,REDACTED,REDACTED
Gloucester City Council,23UE,REDACTED,REDACTED,REDACTED,REDACTED,REDACTED,23/07/2014,REDACTED,1250,NET,REDACTED,REDACTED
Gloucester City Council,23UE,REDACTED,REDACTED,REDACTED,REDACTED,REDACTED,23/07/2014,REDACTED,500,NET,REDACTED,REDACTED
Gloucester City Council,23UE,Summer Festival,LT300,Fees For Services Received,5350,Lighting Installation Summer Sound 2014,23/07/2014,387898,2559,NET,Peak Hire Limited,07936J
Gloucester City Council,23UE,Summer Festival,LT300,Fees For Services Received,5350,Sound Installation Summer Sound 2014,23/07/2014,387900,2368,NET,Peak Hire Limited,07936J
Gloucester City Council,23UE,Summer Festival,LT300,Fees For Services Received,5350,Sound & Lighting Summer Sound 2014,23/07/2014,387899,1310,NET,Peak Hire Limited,07936J
Gloucester City Council,23UE,Superbreak,LT104,Materials For Sale,5080,REDACTED,23/07/2014,387937,96.5,NET,Superbreak Mini Holidays,00712D
Gloucester City Council,23UE,Superbreak,LT104,Sale Of Goods And Services,9230,REDACTED,23/07/2014,387937,-8.04,NET,Superbreak Mini Holidays,00712D
Gloucester City Council,23UE,Tic Trading,LT110,Publications For Sale,5064,10 Books ordered in March,23/07/2014,387935,57.4,NET,REDACTED,REDACTED
Gloucester City Council,23UE,Tic Trading,LT110,Trade Refuse Sacks,5040,Trade Waste Service,23/07/2014,387945,1974.9,NET,Enterprise (Aol) Ltd,06695G
Gloucester City Council,23UE,Tourism Marketing,LT100,Exhibits And Collections,5038,Enhanced web listing 12 months,23/07/2014,387936,150,NET,Blueprint Travel Media,14905G
Gloucester City Council,23UE,Tourism Marketing,LT100,Security Services Fees,5351,Services August 2014,23/07/2014,387980,88.17,NET,G4s Cash Solutions (Uk) Ltd,04290V
Gloucester City Council,23UE,Ugly Structures,GY010,Contract Payments,0020,Plants & Flowers,23/07/2014,387924,67.5,CAP,Coblands Nurseries,14914F
Gloucester City Council,23UE,Business Transformation & Tech,RT700,Computer Software Maintenance,5427,Recharge for homeseeker fees 14/15,24/07/2014,387768,11000,NET,Forest Of Dean District Council,15985W
Gloucester City Council,23UE,Development Management,PT200,Advertising And Publicity,5702,Advertisements 17/07/2014,24/07/2014,387897,292.16,NET,Local World Ltd,08556P
Gloucester City Council,23UE,Homelessness,CH120,Board And Lodging,5515,REDACTED,24/07/2014,388068,366.75,NET,Harrison Clark Rickerbys Solicitors,11064C
Gloucester City Council,23UE,Homelessness,CH120,Board And Lodging,5515,various tenants,24/07/2014,388070,2315.88,NET,Dorchester House Trust,12298D
Gloucester City Council,23UE,Homelessness,CH120,Board And Lodging,5515,various tenants,24/07/2014,388071,1066.2,NET,Kalmwood Ltd,08568G
Gloucester City Council,23UE,Homelessness,CH120,Board And Lodging,5515,various tenants,24/07/2014,388072,426.6,NET,Kimbrose Ltd,06333H
Gloucester City Council,23UE,Homelessness,CH120,Board And Lodging,5515,various tenants,24/07/2014,388073,1179.87,NET,REDACTED,REDACTED
Gloucester City Council,23UE,Homelessness,CH120,Board And Lodging,5515,various tenants,24/07/2014,388074,720,NET,REDACTED,REDACTED
Gloucester City Council,23UE,Homelessness,CH120,Board And Lodging,5515,various tenants,24/07/2014,388075,115.54,NET,James Legge Property (Ltd),07844R
Gloucester City Council,23UE,Homelessness,CH120,Board And Lodging,5515,various tenants,24/07/2014,388076,2445.87,NET,REDACTED,REDACTED
Gloucester City Council,23UE,Homelessness,CH120,Board And Lodging,5515,various tenants,24/07/2014,388077,1619.09,NET,Carbrey Housing Ltd,11098G
Gloucester City Council,23UE,Homelessness,CH120,Board And Lodging,5515,various tenants,24/07/2014,388078,880.72,NET,Carbrey Housing Ltd,11098G
Gloucester City Council,23UE,Homelessness,CH120,Rent In Advance,5516,REDACTED,24/07/2014,388069,484.6,NET,REDACTED,REDACTED
Gloucester City Council,23UE,Homelessness,CH120,Rent In Advance,5516,REDACTED,24/07/2014,388066,270,NET,REDACTED,REDACTED
Gloucester City Council,23UE,Homelessness Prevention,CH122,Fees For Services Received,5350,REDACTED,24/07/2014,388069,500,NET,REDACTED,REDACTED
Gloucester City Council,23UE,Bulky Waste,HI106,Charges For Services,9300,BULKY WASTE REFUND RE 01904 16860367164,25/07/2014,388095,24,NET,REDACTED,REDACTED
Gloucester City Council,23UE,Civica Admin Charges,RT105,Postages,5400,ACCT 0870585007 W/E 16/06/14,25/07/2014,387274,1259.41,NET,Royal Mail S.Wales & South West,35830S
Gloucester City Council,23UE,Civil Parking Enforcement,PT741,Parking Permits,9452,XL08213057 not a Gloucester parking fine,25/07/2014,388096,40,NET,REDACTED,REDACTED
Gloucester City Council,23UE,Council Streetcare Team,HI101,Routine R And M - Vehicles,4011,MOT VT30,25/07/2014,388106,99,NET,123 Car & Commercial,07651E
Gloucester City Council,23UE,Disabled Facilities Grants,CY013,Disabled Facility Grants,0074,MDF5112 FINAL PAYMENT,25/07/2014,388097,2500,CAP,REDACTED,REDACTED
Gloucester City Council,23UE,Stationery Services,RS150,Stationery,5302,stationery,25/07/2014,388099,12.93,NET,Lyreco Uk Ltd,11746G
Gloucester City Council,23UE,Stationery Services,RS150,Stationery,5302,STATIONERY,25/07/2014,388098,101.88,NET,Lyreco Uk Ltd,11746G
Gloucester City Council,23UE,Civica Admin Charges,RT105,Postages,5400,ACCT 0870585007,28/07/2014,387507,1140.33,NET,Royal Mail S.Wales & South West,35830S
Gloucester City Council,23UE,Countryside Unit,LP201,Routine R And M - Vehicles,4011,PTO GUARD,28/07/2014,388103,74.4,NET,A C Belting Ltd,00250X
Gloucester City Council,23UE,Docks Complex - Catering Servs,RB110,Catering Provisions -Food,5110,Food,28/07/2014,388167,325.1,NET,3663,55585U
Gloucester City Council,23UE,Docks Complex - Catering Servs,RB110,Catering Provisions -Food,5110,Food,28/07/2014,388168,353.47,NET,3663,55585U
Gloucester City Council,23UE,Docks Complex - Catering Servs,RB110,Catering Provisions -Food,5110,Food,28/07/2014,388175,284.3,NET,3663,55585U
Gloucester City Council,23UE,Docks Complex - Catering Servs,RB110,Catering Provisions -Food,5110,Food w/e 13/07/2014,28/07/2014,387578,93.54,NET,Janes Pantry,24500W
Gloucester City Council,23UE,Folk Museum,LM210,Security Services Fees,5351,Engineer 29/05/2014,28/07/2014,385390,110,NET,Adt Fire & Security Plc,54086D
Gloucester City Council,23UE,Gl1 Pool Air Handling System,LY152,Contract Payments,0020,CDM GL1 AHU,28/07/2014,388108,287.5,CAP,Goddard Consulting Llp,10598G
Gloucester City Council,23UE,REDACTED,REDACTED,REDACTED,REDACTED,REDACTED,28/07/2014,REDACTED,50,NET,REDACTED,REDACTED
Gloucester City Council,23UE,Homelessness,CH120,Board And Lodging,5515,RIA,28/07/2014,388176,270,NET,REDACTED,REDACTED
Gloucester City Council,23UE,Investment Property,RB500,General Repair/Maint Buildings,3000,Clear Hoppers from city museum,28/07/2014,387575,80,NET,REDACTED,REDACTED
Gloucester City Council,23UE,Legal Services,RS200,Basic Pay - Temporary Staff,2751,REDACTED,28/07/2014,387143,1401.93,NET,Venn Group Ltd,04339P
Gloucester City Council,23UE,Legal Services,RS200,Basic Pay - Temporary Staff,2751,REDACTED,28/07/2014,387643,810,NET,Badenoch & Clark,01536P
Gloucester City Council,23UE,Summer Festival,LT300,Fees For Services Received,5350,"Stage & Pit Barrier, 19/07/2014",28/07/2014,387895,5650,NET,Peak Hire Limited,07936J
Gloucester City Council,23UE,Wake Room,HC501,Catering Provisions -Food,5110,Food,28/07/2014,388174,442.25,NET,3663,55585U
Gloucester City Council,23UE,Wake Room,HC501,Catering Provisions -Food,5110,Food w/e 13/07/2014,28/07/2014,387577,212.89,NET,Janes Pantry,24500W
Gloucester City Council,23UE,Wake Room,HC501,Other Minor Supplies Services,5590,Flowers,28/07/2014,388169,18.4,NET,Carols Florist,01274X
Gloucester City Council,23UE,Wake Room,HC501,Other Minor Supplies Services,5590,Flowers,28/07/2014,388170,33.6,NET,Carols Florist,01274X
Gloucester City Council,23UE,Asset Management,RS300,Basic Pay - Temporary Staff,2751,REDACTED,29/07/2014,387963,9.9,NET,Hays Specialist Recruitment Ltd,55516P
Gloucester City Council,23UE,Asset Management,RS300,Basic Pay - Temporary Staff,2751,REDACTED,29/07/2014,387965,8.1,NET,Hays Specialist Recruitment Ltd,55516P
Gloucester City Council,23UE,Asset Management,RS300,Basic Pay - Temporary Staff,2751,REDACTED,29/07/2014,387967,13.05,NET,Hays Specialist Recruitment Ltd,55516P
Gloucester City Council,23UE,Asset Management,RS300,Basic Pay - Temporary Staff,2751,REDACTED,29/07/2014,387970,7.2,NET,Hays Specialist Recruitment,04355S
Gloucester City Council,23UE,Asset Management,RS300,Basic Pay - Temporary Staff,2751,REDACTED,29/07/2014,387964,1197.14,NET,Hays Specialist Recruitment Ltd,55516P
Gloucester City Council,23UE,Asset Management,RS300,Basic Pay - Temporary Staff,2751,REDACTED,29/07/2014,387966,1288.63,NET,Hays Specialist Recruitment Ltd,55516P
Gloucester City Council,23UE,Asset Management,RS300,Basic Pay - Temporary Staff,2751,REDACTED,29/07/2014,387968,1311.51,NET,Hays Specialist Recruitment Ltd,55516P
Gloucester City Council,23UE,Asset Management,RS300,Basic Pay - Temporary Staff,2751,REDACTED,29/07/2014,387969,1281,NET,Hays Specialist Recruitment,04355S
Gloucester City Council,23UE,City Museum And Art Gallery,LM200,Exhibits And Collections,5038,Button Badge,29/07/2014,388141,370,NET,Emblem Print Products Limited,54871Z
Gloucester City Council,23UE,Civic Admin And Hospitality,RC210,Advertising And Publicity,5702,Advertisements 18/06/2014,29/07/2014,386366,262.94,NET,Local World Ltd,08556P
Gloucester City Council,23UE,Civic Admin And Hospitality,RC210,Muniments And Regalia,5033,Mayoral Robe,29/07/2014,385066,820,NET,Michaels Civic Robes,03293Y
Gloucester City Council,23UE,Civil Parking Enforcement,PT741,Pcn Charges,9450,G011028282 parking refund,29/07/2014,388203,25,NET,REDACTED,REDACTED
Gloucester City Council,23UE,Civil Parking Enforcement,PT741,Pcn Charges,9450,G012084602 parking refund,29/07/2014,388202,35,NET,REDACTED,REDACTED
Gloucester City Council,23UE,Crematorium,HC200,Memorial Plaques,5053,Plaque,29/07/2014,388136,105,NET,Steel & Stone (York),57204U
Gloucester City Council,23UE,Crematorium,HC200,Memorial Plaques,5053,Plaque,29/07/2014,388137,70,NET,Steel & Stone (York),57204U
Gloucester City Council,23UE,Crematorium,HC200,Memorial Plaques,5053,Plaques & Stakes,29/07/2014,388134,109,NET,Steel & Stone (York),57204U
Gloucester City Council,23UE,Crematorium,HC200,Memorial Plaques,5053,Plaques & Stakes,29/07/2014,388135,132,NET,Steel & Stone (York),57204U
Gloucester City Council,23UE,Crematorium,HC200,Memorial Plaques,5053,Plaque & Stake,29/07/2014,388138,114,NET,Steel & Stone (York),57204U
Gloucester City Council,23UE,Crematorium,HC200,Memorial Plaques,5053,Plaque & Stake,29/07/2014,388139,94,NET,Steel & Stone (York),57204U
Gloucester City Council,23UE,Docks Complex - Services,RB100,General Repair/Maint Buildings,3000,HERBERT WAREHOUSE REPAIRS,29/07/2014,388117,538.12,NET,Gea Denco Ltd,57271C
Gloucester City Council,23UE,Docks Complex - Services,RB100,Repair/Maint Of Fixed Plant,3006,Annual Boiler Inspection,29/07/2014,386590,320,NET,Hewer Facilities Mgt Ltd,05232A
Gloucester City Council,23UE,Docks Complex - Services,RB100,Repair/Maint Of Fixed Plant,3006,Annual Boiler Service,29/07/2014,386592,480,NET,Hewer Facilities Mgt Ltd,05232A
Gloucester City Council,23UE,Environmental Planning,LM340,Operational Materials,5070,"work at Severnside Proj, Hempsted",29/07/2014,382609,15,NET,Gloucester Vale Conservation Volunteers,55761Y
Gloucester City Council,23UE,Financial Services,RT200,Planning Direct Action,5347,REDACTED,29/07/2014,387486,3975,NET,Robert Half Ltd,03959K
Gloucester City Council,23UE,Gloucester Guildhall,LA100,Maintenance Of Equipment,5030,Diamond Lamp,29/07/2014,386974,197,NET,Av Partsmaster Ltd,14850G
Gloucester City Council,23UE,Homelessness,CH120,Fees For Services Received,5350,REDACTED,29/07/2014,387752,827.01,NET,Venn Group Ltd,04339P
Gloucester City Council,23UE,Homelessness,CH120,Rent In Advance,5516,REDACTED,29/07/2014,388199,484.6,NET,REDACTED,REDACTED
Gloucester City Council,23UE,Housing Strategy & Enabling,CH110,Vocational Training,2970,REDACTED,29/07/2014,388147,280,NET,Chartered Institute Of Housing,24230C
Gloucester City Council,23UE,Investment Property,RB500,Lift Maintenance,3051,City Museum 17/06/2014,29/07/2014,386871,1959.2,NET,Pickerings Europe Ltd*,58816U
Gloucester City Council,23UE,Investment Property,RB500,Repair/Maint Of Fixed Plant,3006,Annual Boiler Service,29/07/2014,386593,348,NET,Hewer Facilities Mgt Ltd,05232A
Gloucester City Council,23UE,Investment Property,RB500,Repair/Maint Of Fixed Plant,3006,Engineer 10/06/2014,29/07/2014,387925,236.7,NET,Adt Fire & Security Plc,54086D
Gloucester City Council,23UE,Legal Services,RS200,Basic Pay -Admin /Prof Staff,2601,REDACTED,29/07/2014,387597,370.62,NET,Sellick Partnership Group Ltd,11057C
Gloucester City Council,23UE,Legal Services,RS200,Basic Pay -Admin /Prof Staff,2601,REDACTED,29/07/2014,388125,883.75,NET,Michael Page International Recruitment Ltd,06601P
Gloucester City Council,23UE,Mandatory Rent Allowances,DD100,Rent Allowances - Normal Payts,7200,REDACTED,29/07/2014,388199,500,NET,REDACTED,REDACTED
Gloucester City Council,23UE,Northwarehouse,RB150,Repair/Maint Of Fixed Plant,3006,Annual Boiler Inspection,29/07/2014,386589,935,NET,Hewer Facilities Mgt Ltd,05232A
Gloucester City Council,23UE,Off Street Car Parks,PP110,Pcn Charges,9450,FE00120143 parking refund,29/07/2014,388200,35,NET,REDACTED,REDACTED
Gloucester City Council,23UE,Off Street Car Parks,PP110,Pcn Charges,9450,G052054028 parking refund,29/07/2014,388201,35,NET,REDACTED,REDACTED
Gloucester City Council,23UE,Public Health,HD200,Other Minor Supplies Services,5590,Chaucer Close,29/07/2014,388146,2144.5,NET,Mr M G Horton T/A H&T Property Maintenance,09210X
Gloucester City Council,23UE,Rugby World Cup,LT450,Clothing,5200,Gloucester City Council Pin Multi,29/07/2014,388132,1625,NET,Brandco Management Ltd,14960Y
Gloucester City Council,23UE,REDACTED,REDACTED,REDACTED,REDACTED,REDACTED,29/07/2014,REDACTED,400,NET,REDACTED,REDACTED
Gloucester City Council,23UE,Summer Festival,LT300,Fees For Services Received,5350,Stage Backline Hire 19/07/2014,29/07/2014,388148,220,NET,Jamie Mckivitt T/A Witney Music Studios,14959G
Gloucester City Council,23UE,Tea Room,HC500,Catering Provisions -Liquor,5111,Liquor,29/07/2014,387581,46.97,NET,Cellar Supplies Cheltenham Ltd,01563L
Gloucester City Council,23UE,Wake Room,HC501,Catering Provisions -Food,5110,Food,29/07/2014,388156,16.64,NET,Total Produce Gloucester,12645E
Gloucester City Council,23UE,Wake Room,HC501,Catering Provisions -Food,5110,Food,29/07/2014,388157,56.9,NET,Total Produce Gloucester,12645E
Gloucester City Council,23UE,Wake Room,HC501,Catering Provisions -Food,5110,Food,29/07/2014,388158,18.63,NET,Total Produce Gloucester,12645E
Gloucester City Council,23UE,Wake Room,HC501,Catering Provisions -Food,5110,Food,29/07/2014,388159,6.5,NET,Total Produce Gloucester,12645E
Gloucester City Council,23UE,Wake Room,HC501,Catering Provisions -Food,5110,Food,29/07/2014,388160,23.79,NET,Total Produce Gloucester,12645E
Gloucester City Council,23UE,Wake Room,HC501,Catering Provisions -Food,5110,Food,29/07/2014,388161,65.6,NET,Total Produce Gloucester,12645E
Gloucester City Council,23UE,Wake Room,HC501,Catering Provisions -Food,5110,Food,29/07/2014,388162,26.97,NET,Total Produce Gloucester,12645E
Gloucester City Council,23UE,Wake Room,HC501,Catering Provisions -Food,5110,Food,29/07/2014,388163,10.45,NET,Total Produce Gloucester,12645E
Gloucester City Council,23UE,Wake Room,HC501,Catering Provisions -Food,5110,Food,29/07/2014,388164,28.43,NET,Total Produce Gloucester,12645E
Gloucester City Council,23UE,Wake Room,HC501,Catering Provisions -Food,5110,Food,29/07/2014,388165,258.98,NET,3663,55585U
Gloucester City Council,23UE,Wake Room,HC501,Catering Provisions -Food,5110,Food,29/07/2014,388166,269.59,NET,3663,55585U
Gloucester City Council,23UE,Wake Room,HC501,Catering Provisions -Food,5110,Food,29/07/2014,388172,165.22,NET,3663,55585U
Gloucester City Council,23UE,Wake Room,HC501,Catering Provisions -Food,5110,Food w/e 06/07/2014,29/07/2014,387257,142.14,NET,Janes Pantry,24500W
Gloucester City Council,23UE,Wake Room,HC501,Cleaning Materials,3600,Cleaning Materials,29/07/2014,388171,43.13,NET,3663,55585U
Gloucester City Council,23UE,Wake Room,HC501,Cleaning Materials,3600,Cleaning Materials,29/07/2014,388173,58.49,NET,3663,55585U
Gloucester City Council,23UE,Bulky Waste,HI106,General Repair/Maint Buildings,3000,Refund for Bulky Item,30/07/2014,388271,12,NET,REDACTED,REDACTED
Gloucester City Council,23UE,Business Support,PT250,Fuel,4012,Fuel,30/07/2014,388264,373.43,NET,Allstar Business Solutions Ltd (Arval),06594A
Gloucester City Council,23UE,Business Support,PT250,Routine R And M - Vehicles,4011,MOT Test,30/07/2014,388263,39,NET,Blade Motor Company,13671U
Gloucester City Council,23UE,Cemeteries,HC300,Fertilisers,3029,Roses,30/07/2014,387891,689.75,NET,Highfield Garden Centres Ltd,48436C
Gloucester City Council,23UE,Cemeteries,HC300,Other Minor Supplies Services,5590,CREOSOTE,30/07/2014,388101,33.33,NET,Countrywide Farmers*,55687J
Gloucester City Council,23UE,Community Safety Projects,FP500,Basic Pay - Temporary Staff,2751,REDACTED,30/07/2014,387664,437.11,NET,Travail Employment Ltd,49371W
Gloucester City Council,23UE,Community Safety Projects,FP500,Basic Pay - Temporary Staff,2751,REDACTED,30/07/2014,387959,526.27,NET,Travail Employment Ltd,49371W
Gloucester City Council,23UE,Contact Centre,RB300,Basic Pay -Admin /Prof Staff,2601,REDACTED,30/07/2014,388153,429.2,NET,One To One Recruitment,04752H
Gloucester City Council,23UE,Contact Centre,RB300,Basic Pay -Admin /Prof Staff,2601,TEMPORARY STAFF W/E 21/7/14,30/07/2014,388116,429.2,NET,One To One Recruitment,04752H
Gloucester City Council,23UE,Crematorium,HC200,Maint Of Grounds - General,3030,Roses,30/07/2014,387892,49.98,NET,Highfield Garden Centres Ltd,48436C
Gloucester City Council,23UE,Crematorium,HC200,"Seeds, Trees, Plants, Shrubs",3028,Cherry Tree,30/07/2014,387893,40.99,NET,Highfield Garden Centres Ltd,48436C
Gloucester City Council,23UE,Flooding And Drainage,HE306,Maint Of Grounds - General,3030,Clear Various Sites,30/07/2014,388259,540,NET,Rdb Safety Boat Ltd,13507J
Gloucester City Council,23UE,Homelessness,CH120,Fees For Services Received,5350,Advice on merits,30/07/2014,388244,750,NET,REDACTED,REDACTED
Gloucester City Council,23UE,Homelessness,CH120,Fees For Services Received,5350,Medical Report,30/07/2014,388257,20.5,NET,Gloucester Health Access Centre,11611H
Gloucester City Council,23UE,Homelessness,CH120,Removal And Storage Fees,5513,REDACTED,30/07/2014,388255,61.71,NET,Advanced Removals & Storage Ltd,57142R
Gloucester City Council,23UE,Homelessness,CH120,Removal And Storage Fees,5513,REDACTED,30/07/2014,388256,36,NET,Advanced Removals & Storage Ltd,57142R
Gloucester City Council,23UE,Homelessness,CH120,Removal And Storage Fees,5513,REDACTED,30/07/2014,388254,230.14,NET,Advanced Removals & Storage Ltd,57142R
Gloucester City Council,23UE,Postal Services,RS120,Postages,5400,Post 11/07- 17/07 2014,30/07/2014,388152,1257.84,NET,Royal Mail S.Wales & South West,35830S
Gloucester City Council,23UE,St Michaels Tower,GY016,Contract Payments,0020,7 day inspection & update scaff-tag,30/07/2014,388243,95,CAP,Asm Scaffolding Services Ltd,14573K
Gloucester City Council,23UE,St Michaels Tower,GY016,Contract Payments,0020,Install Scaffolding alarm 28/05/2014,30/07/2014,388241,995,CAP,Asm Scaffolding Services Ltd,14573K
Gloucester City Council,23UE,St Michaels Tower,GY016,Contract Payments,0020,Scaffolding 28/05/2014,30/07/2014,388242,1230,CAP,Asm Scaffolding Services Ltd,14573K
Gloucester City Council,23UE,St Michaels Tower,GY016,Contract Payments,0020,"St Michaels Tower, Permit Licence",30/07/2014,388240,260,CAP,Asm Scaffolding Services Ltd,14573K
Gloucester City Council,23UE,Summer Festival,LT300,Charges For Services,9300,Medical Cover Summer in Gloucester event,30/07/2014,388274,400,NET,St John Ambulance*,03597Y
Gloucester City Council,23UE,Summer Festival,LT300,Fees For Services Received,5350,medical cover for 10k run 13/7/14,30/07/2014,388273,163,NET,St John Ambulance*,03597Y
Gloucester City Council,23UE,REDACTED,REDACTED,REDACTED,REDACTED,REDACTED,30/07/2014,REDACTED,220,NET,REDACTED,REDACTED
Gloucester City Council,23UE,Tourism Marketing,LT100,Operational Equipment <5000,5012,Cleaning Materials,30/07/2014,388246,16.17,NET,Robert Hall Business Equipment Ltd,19925B
Gloucester City Council,23UE,Wake Room,HC501,Cleaning Materials,3600,SANITARY UNITS,30/07/2014,387488,33.56,NET,Minster Cleaning Services,02158R
Gloucester City Council,23UE,Building Control,PT400,Basic Pay - Temporary Staff,2751,REDACTED,31/07/2014,383527,3410,NET,Brg Interim Solutions,14065L
Gloucester City Council,23UE,City Museum And Art Gallery,LM200,Events,5952,Hire of Bouncy Castles,31/07/2014,388295,1000,NET,Anytime Castles & Sunbeds Ltd,55955G
Gloucester City Council,23UE,City Museum And Art Gallery,LM200,Events,5952,Live dome theatre shows 30/08/2014,31/07/2014,388294,575,NET,Immersive Theatres,15127E
Gloucester City Council,23UE,City Museum And Art Gallery,LM200,Exhibits And Collections,5038,Survey of twelve tudor portraits,31/07/2014,388296,527,NET,Elizabeth Holford Associates Ltd,15152M
Gloucester City Council,23UE,City Museum And Art Gallery,LM200,Publications For Sale,5064,Payment for 50 books,31/07/2014,388293,374.5,NET,REDACTED,REDACTED
Gloucester City Council,23UE,Financial Services,RT200,Planning Direct Action,5347,REDACTED,31/07/2014,388143,2175,NET,Robert Half Ltd,03959K
Gloucester City Council,23UE,Folk Museum,LM210,Sewerage And Environ Charges,3402,"Hygiene Unit, Monthly, folk museum",31/07/2014,386997,18.33,NET,Ocs Group Uk Limited T/A Cannon,06506A
Gloucester City Council,23UE,Food Safety,HE100,Fees For Services Received,5350,L2 AWARD IN FOOD SAFETY PAPERS,31/07/2014,388102,616.45,NET,Chartered Institute Of Environmental Health,24227R
Gloucester City Council,23UE,Guildhall Bar And Caf�,LA210,Catering Provisions -Food,5110,Food,31/07/2014,387850,104.49,NET,Woodward Foodservice,10714F
Gloucester City Council,23UE,Homelessness,CH120,Rent In Advance,5516,REDACTED,31/07/2014,388299,484.6,NET,REDACTED,REDACTED
Gloucester City Council,23UE,Homelessness Prevention,CH122,Fees For Services Received,5350,REDACTED,31/07/2014,388299,500,NET,REDACTED,REDACTED
Gloucester City Council,23UE,Investment Property,RB500,Lift Maintenance,3051,Stannah Stairiser,31/07/2014,386065,187.51,NET,Stannah Lift Services Ltd,41700C
Gloucester City Council,23UE,Pest Control,HD400,Fees For Services Received,5350,Pest Control Rodents Visit,31/07/2014,387649,2724.89,NET,Falconry Services Ltd,10692P
Gloucester City Council,23UE,Planning Policy,PT300,Basic Pay - Temporary Staff,2751,REDACTED,31/07/2014,387757,2103.2,NET,The Oyster Partnership Limited,14900T
Gloucester City Council,23UE,Planning Policy,PT300,Basic Pay - Temporary Staff,2751,REDACTED,31/07/2014,386690,1755,NET,The Oyster Partnership Limited,14900T
Gloucester City Council,23UE,Wake Room,HC501,Cleaning Materials,3600,"Invoice: 98, Laundering",31/07/2014,388300,44,NET,REDACTED,REDACTED
Gloucester City Council,23UE,Wake Room,HC501,Cleaning Materials,3600,"Invoice: 99, Laundering",31/07/2014,388301,27.5,NET,REDACTED,REDACTED
Gloucester City Council,23UE,Armscroft Park Flood Mit S106,LY153,Contract Payments,0020,"Armscroft Park, Install land drain",01/08/2014,388339,2915,CAP,Rj Contracting (Environmental) Ltd,07429H
Gloucester City Council,23UE,Community Safety Projects,FP500,Basic Pay - Temporary Staff,2751,REDACTED,01/08/2014,388352,486.39,NET,Travail Employment Ltd,49371W
Gloucester City Council,23UE,Crematorium,HC200,National Assist Act Burial Exp,5593,REDACTED,01/08/2014,388333,623,NET,Selim Smith & Co Funeral Directors,15156X
Gloucester City Council,23UE,Gloucester Guildhall,LA100,Routine R And M - Vehicles,4011,Starter Motor,01/08/2014,388331,112.5,NET,123 Car & Commercial,07651E
Gloucester City Council,23UE,Guildhall Bar And Caf�,LA210,Basic Pay - Duty Assistants,1511,Food June 2014,01/08/2014,388340,117.75,NET,Woody's Fruit & Veg,11798L
Gloucester City Council,23UE,Guildhall Bar And Caf�,LA210,Catering Provisions -Food,5110,Food,01/08/2014,388341,4.96,NET,Total Produce Gloucester,12645E
Gloucester City Council,23UE,Guildhall Bar And Caf�,LA210,Catering Provisions -Food,5110,Food,01/08/2014,388342,4.96,NET,Total Produce Gloucester,12645E
Gloucester City Council,23UE,Guildhall Bar And Caf�,LA210,Catering Provisions -Food,5110,Food,01/08/2014,388343,4.96,NET,Total Produce Gloucester,12645E
Gloucester City Council,23UE,Guildhall Bar And Caf�,LA210,Catering Provisions -Food,5110,Food,01/08/2014,388344,4.96,NET,Total Produce Gloucester,12645E
Gloucester City Council,23UE,Guildhall Bar And Caf�,LA210,Catering Provisions -Food,5110,Food,01/08/2014,388345,4.96,NET,Total Produce Gloucester,12645E
Gloucester City Council,23UE,Guildhall Bar And Caf�,LA210,Catering Provisions -Food,5110,Food,01/08/2014,388346,78.28,NET,Woodward Foodservice,10714F
Gloucester City Council,23UE,Guildhall Bar And Caf�,LA210,Catering Provisions -Liquor,5111,Liquor,01/08/2014,388320,899.73,NET,Cellar Supplies Cheltenham Ltd,01563L
Gloucester City Council,23UE,Guildhall Bar And Caf�,LA210,Other Catering Provisions,5112,Cups & Cleaning Materials,01/08/2014,388321,213,NET,Gerry Dance Disposables Ltd,54579Y
Gloucester City Council,23UE,Guildhall Bar And Caf�,LA210,Other Catering Provisions,5112,Stock Audit 17/07/2014,01/08/2014,388322,175,NET,Fea Audits,08888J
Gloucester City Council,23UE,Pest Control,HD400,Fees For Services Received,5350,Bird Control 23/06/2014,01/08/2014,388327,4420,NET,Falconry Services Ltd,10692P
Gloucester City Council,23UE,Pest Control,HD400,Fees For Services Received,5350,Nest Removal,01/08/2014,388326,275,NET,Falconry Services Ltd,10692P
Gloucester City Council,23UE,Planning Policy,PT300,Basic Pay - Temporary Staff,2751,REDACTED,01/08/2014,388127,1762,NET,The Oyster Partnership Limited,14900T
Gloucester City Council,23UE,Planning Policy,PT300,Basic Pay - Temporary Staff,2751,REDACTED,01/08/2014,388252,1750,NET,The Oyster Partnership Limited,14900T
Gloucester City Council,23UE,REDACTED,REDACTED,REDACTED,REDACTED,REDACTED,01/08/2014,REDACTED,75,NET,REDACTED,REDACTED
Gloucester City Council,23UE,Tic Stamp Sales,LT102,Postages,5400,International Postcard Stamp,01/08/2014,388335,349.2,NET,Universal Mail United Kingdom Ltd,14283Y
Gloucester City Council,23UE,Tourism Marketing,LT100,Window Cleaning,3610,Window Cleaning Weekly,01/08/2014,388323,12,NET,Interserve Fs (Uk) Limited,00442K
Gloucester City Council,23UE,Blackfriars Priory,RY207,Contract Payments,0020,contoured stacking frame & chair trolley,,382598,6332,CAP,Furniture@Work Ltd,01124U
Gloucester City Council,23UE,Civil Parking Enforcement,PT741,On Street Parking Charges,6550,Cost of parking income March 2014,,383020,43032.12,NET,Gloucestershire County Council,18650D
Gloucester City Council,23UE,Homelessness,CH120,Rent In Advance,5516,REDACTED,,388067,364.6,NET,REDACTED,REDACTED
Gloucester City Council,23UE,Retail Market - Landlord,HM300,Hire Of Equipment,5020,"Eastgate Market, Skip",,387653,200,NET,D R Skip Hire,04822D
Gloucester City Council,23UE,Retail Market - Landlord,HM300,Window Cleaning,3610,Markets Nov13 window cleaning,,375728,260,NET,REDACTED,REDACTED
Gloucester City Council,23UE,Utilities,PT502,Electricity Supply,3110,MARKET STOREROOM,,387080,33.67,NET,Npower,03929V
,,,,,,,,Sum:,2879578.45,,,
